{"text_format":"1","workbook":"xlsx","n_sheets":22,"sheets":["список ТСО","С1_СТС","Расчет2","C1","Воздушные линии","Кабельные линии","Пункты секционирования","Трансформаторные подстанции","РТП","Источники питания","С1_1кВт","С8_ПУ","реестр","Калькулятор","ставки за 1кВт","ВЛ_1 кВт","КЛ_1 кВт","C4_пункты секционирования","С5_ТП_1 кВт","С6_РТП_1 кВт","С7_ИП_1 кВт","С8_1 кВт"],"not_rendered":{"charts":0,"images":11,"macros":1,"external_links":1,"defined_names":7,"comments":0,"pivot_tables":0},"unopened":[],"bounds":{"document_bytes":16777216,"sheet_cells":100000,"rows_first":2000,"rows_last":500,"rows_between":2000,"halvings":0,"cell_chars":16384,"cell_head_chars":4096},"cells_cut":0,"cells_raw":0,"read":"whole","date_system":"1900"}

{"sheet":"список ТСО","index":0,"n_rows":57,"n_cols":2,"rows_kept":57,"cut":false,"hidden":true,"merged":[]}
["№ п/п","Полное (сокращенное) наименование территориальной сетевой организации (ТСО)"]
[1,"Филиал открытого акционерного общества «Межрегиональная распределительная сетевая компания Урала»-«Челябэнерго» (Филиал ОАО «МРСК Урала»-«Челябэнерго»)"]
[2,"Общество с ограниченной ответственностью «АЭС Инвест» \n(ООО «АЭС Инвест»)"]
[3,"Акционерное общество «Автомобильный завод «Урал» \n(АО «Автомобильный завод «Урал», АО \"АЗ \"Урал\")"]
[4,"Акционерное общество «Оборонэнерго» Филиал «Уральский» \n(АО «Оборонэнерго» Филиал «Уральский»)"]
[5,"Акционерное общество «Трансэнерго» \n(АО «Трансэнерго»)"]
[6,"Акционерное общество «Челябинское авиапредприятие» \n(АО «ЧАП»)"]
[7,"Акционерное общество «Челябинский электрометаллургический комбинат» \n(АО «ЧЭМК»)"]
[8,"Акционерное общество «Электросеть» \n(АО «Электросеть»)"]
[9,"Акционерное общество «Энергосетевая Компания ЧТПЗ» \n(АО «ЭСК ЧТПЗ» )"]
[10,"Муниципальное многоотраслевое предприятие коммунального хозяйства (ММПКХ)"]
[11,"Муниципальное предприятие  «Горэлектросеть» г. Магнитогорска \n(МП  «Горэлектросеть» г. Магнитогорска)"]
[12,"Муниципальное унитарное предприятие «Городская управляющая компания» \n(МУП «ГУК»)"]
[13,"Муниципальное унитарное предприятие «Копейские электрические сети» \n(МУП «КЭС»)"]
[14,"Муниципальное унитарное предприятие «Многоотраслевое производственное объединение энергосетей» города Трехгорного \n(МУП «МПОЭ» г. Трехгорного)"]
[15,"Муниципальное унитарное предприятие «Производственное объединение водоснабжения и водоотведения» г. Челябинска \n(МУП «ПОВВ»)"]
[16,"Муниципальное унитарное предприятие «Электротепловые сети» \n(МУП «ЭТС»)"]
[17,"Непубличное акционерное общество \"Вишневогорский горно-обогатительный комбинат\" (АО \"Вишневогорский ГОК\")"]
[18,"Открытое акционерное общество «Магнитогорский метизно-калибровочный завод «ММК-Метиз» \n(ОАО «ММК-Метиз»)"]
[19,"Открытое акционерное общество «Российские железные дороги» (Южно-Уральская дирекция по энергообеспечению – структурное подразделение Трансэнерго – филиала открытого акционерного общества «Российские железные дороги») \n(ОАО \"РЖД\" (Южно-Уральская дирекция по энергообеспечению – структурное подразделение Трансэнерго – филиала ОАО \"РЖД\")"]
[20,"Открытое акционерное общество «Челябинская электросетевая компания» \n(ОАО «ЧЭК»)"]
[21,"Открытое акционерное общество «Энергопром-Челябинский электродный завод» \n(ОАО «ЭПМ-ЧЭЗ», ОАО «ЭНЕРГОПРОМ-ЧЭЗ»)"]
[22,"Общество с ограниченной ответственностью \"АТЭК74\" \n(ООО \"АТЭК74\")"]
[23,"Общество с ограниченной ответственностью «Златэнерготелеком» \n(ООО «Златэнерготелеком»)"]
[24,"Общество с ограниченной ответственностью «Интернешенел Билдинг Констракшен» \n(ООО «ИБК»)"]
[25,"Общество с ограниченной ответственностью «Каслинская ЭнергоСбытовая Компания» \n(ООО «Каслинская ЭнергоСбытовая Компания»)"]
[26,"Общество с ограниченной ответственностью Завод стройиндустрии «КЕММА» \n(ООО «КЕММА»)"]
[27,"Общество с ограниченной ответственностью \"Магнитогорская Сетевая Компания\"\n(ООО \"МСК\")"]
[28,"Общество с ограниченной ответственностью «Металлстрой» \n(ООО «Металлстрой»)"]
[29,"Общество с ограниченной ответственностью «Механический завод» \n(ООО «Механический завод»)"]
[30,"Общество с ограниченной ответственностью «Объединенная электросетевая компания - Челябинск» \n(ООО «ОЭсК - Челябинск»)"]
[31,"Общество с ограниченной ответственностью «ПРОДВИЖЕНИЕ» \n(ООО «ПРОДВИЖЕНИЕ»)"]
[32,"Общество с ограниченной ответственностью «Региональная сетевая компания» \n(ООО «РСК»)"]
[33,"Общество с ограниченной ответственностью Сетевая компания «ЭнергоРесурс» \n(ООО СК «ЭнР»)"]
[34,"Общество с ограниченной ответственностью «Сети и системы» \n(ООО «Сети и системы»)"]
[35,"Общество с ограниченной ответственностью «Системы Передачи Электроэнергии» \n(Общество с ограниченной ответственностью «СПЭ»)"]
[36,"Общество с ограниченной ответственностью «ТДК» \n(ООО «ТДК»)"]
[37,"Общество с ограниченной ответственностью «ТЕХНОСЕРВИС-ПЭ» \n(ООО «ТЕХНОСЕРВИС-ПЭ»)"]
[38,"Общество с ограниченной ответственностью «Тепловые электрические сети и системы» \n(ООО «ТЭСиС»)"]
[39,"Общество с ограниченной ответственностью \"Трансэнерго\" \n(ООО \"Трансэнерго\")"]
[40,"Общество с ограниченной ответственностью «Управление энергоснабжения и связи» \n(ООО «УЭС»)"]
[41,"Общество с ограниченной ответственностью \"Уральская энергетическая сетевая компания\" (ООО \"УЭСК\")"]
[42,"Общество с ограниченной ответственностью «ЭДС» \n(ООО «ЭДС»)"]
[43,"Общество с ограниченной ответственностью «Электро ТК» \n(ООО «Электро ТК»)"]
[44,"Общество с ограниченной ответственностью «Электросетевая компания» \n(ООО «ЭСК») г. Екатеринбург"]
[45,"Общество с ограниченной ответственностью «Электросетевая компания» \n(ООО «Электросетевая компания») г. Сатка"]
[46,"Общество с ограниченной ответственностью «ЭНЕРГЕТИЧЕСКАЯ КОМПАНИЯ АЛЬТАИР» \n(ООО «ЭНЕРГЕТИЧЕСКАЯ КОМПАНИЯ АЛЬТАИР»)"]
[47,"Общество с ограниченной ответственностью «Энергоснабжающая сетевая компания» \n(ООО «ЭСК»)"]
[48,"Общество с ограниченной ответственностью «Энерготехсервис» \n(ООО «ЭТС»)"]
[49,"Общество с ограниченной ответственностью «Эффект ТК» \n(ООО «Эффект ТК»)"]
[50,"Общество с ограниченной ответственностью «Южноуральская сетевая компания» \n(ООО «ЮСК»)"]
[51,"Публичное акционерное общество «Магнитогорский металлургический комбинат» (ПАО «ММК»)"]
[52,"Публичное акционерное общество «Челябинский машиностроительный завод автомобильных прицепов «Уралавтоприцеп» \n(ПАО «Уралавтоприцеп»)"]
[53,"Публичное акционерное общество «Челябинский завод профилированного стального настила» \n(ПАО «ЧЗПСН-ПРОФНАСТИЛ»)"]
[54,"Федеральное государственное унитарное предприятие  «Приборостроительный завод» \n(ФГУП «ПСЗ», ФГУП «Приборостроительный завод»)"]
[55,"Федеральное государственное унитарное предприятие  «Производственное объединение «Маяк» \n(ФГУП «ПО «Маяк»)"]
[56,"Федеральное государственное унитарное предприятие  «УСТЬ-КАТАВСКИЙ ВАГОНОСТРОИТЕЛЬНЫЙ ЗАВОД имени С.М. Кирова» – филиал АО «ГОСУДАРСТВЕННЫЙ КОСМИЧЕСКИЙ НАУЧНО-ПРОИЗВОДСТВЕННЫЙ ЦЕНТР имени М.В. Хруничева» "]

{"sheet":"С1_СТС","index":1,"n_rows":8,"n_cols":5,"rows_kept":8,"cut":false,"hidden":true,"merged":[[2,1,2,2],[5,1,5,2],[0,0,0,4]]}
["Стандартизированная тарифная ставка на покрытие расходов сетевой организации за технологическое присоединение энергопринимающих устройств потребителей электрической энергии, объектов электросетевого хозяйства, принадлежащих сетевым организациям и иным лицам (С1) по мероприятиям, указанным в пункте 16 Методических указаний (кроме подпункта «б») \n(на территориях городских населенных пунктов и на территориях, \nне относящихся к территориям городских населенных пунктов)"]
[]
["№ п.п.","Наименование стандартизированной тарифной ставки",null,"Единица измерения","Значение (без учета НДС)"]
[1,2,3,4,5]
[1,"С1","Стандартизированная тарифная ставка на покрытие расходов сетевой организации за технологическое присоединение энергопринимающих устройств потребителей электрической энергии, объектов электросетевого хозяйства, принадлежащих сетевым организациям и иным лицам, по мероприятиям, указанным в пункте 16 Методических указаний (кроме подпункта «б»),","руб. за одно присоединение",11644.28]
[null,"в том числе:"]
["1.1.","С1.1","Подготовка и выдача сетевой организацией технических условий Заявителю","руб. за одно присоединение ",5493.16]
["1.2.","С1.2","Проверка сетевой организацией выполнения Заявителем технических условий (включая процедуры, предусмотренные подпунктами «г» - «е» пункта 7 Правил технологического присоединения)","руб. за одно присоединение ",6151.12]

{"sheet":"Расчет2","index":2,"n_rows":52,"n_cols":4,"rows_kept":52,"cut":false,"hidden":true,"merged":[[19,3,21,3],[20,1,20,2],[33,1,33,2],[36,1,36,2],[51,1,51,2],[1,1,1,2],[18,1,18,2],[35,1,35,2]]}
[]
[null,"Расчет платы за технологическое присоединение к электрическим сетям"]
[]
[null,"Наименование сетевой организации:",{"$f":"Калькулятор!C5","v":0}]
[]
[null,"Уровень напряжения, кВ:",{"$f":"Калькулятор!C7","v":0}]
[]
[null,"Максимальная мощность, кВт:",{"$f":"Калькулятор!C8","v":0}]
[]
[null,"Наличие мероприятий по строительству «последней мили» со стороны сетевой организации"]
[null,{"$f":"Калькулятор!B12","v":"Строительство воздушных линий"},{"$f":"Калькулятор!C12","v":0}]
[null,{"$f":"Калькулятор!B13","v":"Строительство кабельных линий"},{"$f":"Калькулятор!C13","v":0}]
[null,{"$f":"Калькулятор!B14","v":"Строительство трансформаторных подстанций"},{"$f":"Калькулятор!C14","v":0}]
[null,{"$f":"Калькулятор!B15","v":"Строительство пунктов секционирования"},{"$f":"Калькулятор!C15","v":0}]
[null,{"$f":"Калькулятор!B16","v":"Строительство подстанций уровнем напряжения 35кВ и выше (ПС)"},{"$f":"Калькулятор!C16","v":0}]
[null,"Строительство распределительных трансформаторных подстанций ",{"$f":"Калькулятор!C17","v":0}]
[null,"Обеспечение средствами коммерческого учета электрической энергии (мощности)",{"$f":"Калькулятор!C18","v":0}]
[]
[null,"Плата по стандартизированным тарифным ставкам:",null,"Примечания"]
[]
[null,"Ттп = С1 + С2 х L1 + С3 х L1 + С4 х k + С5 х N1 + С6 х N1 +С7 х NI + С8 х q  "]
[]
[null,"С1, рублей/за одно присоединение",{"$f":"'C1'!E10","v":13164.35},"Единая для всех ТСО"]
[null,"Плата за организационные мероприятия, руб. (без НДС)",{"$f":"C23","v":13164.35},"(в текущих ценах)"]
[null,"Плата за строительство воздушных линий, руб.  C2",{"$f":"IF(C11=\"да\",IF(Калькулятор!C9='ставки за 1кВт'!D4,'Воздушные линии'!L10,IF(Калькулятор!C9='ставки за 1кВт'!E4,'Воздушные линии'!L11,IF(Калькулятор!C9='ставки за 1кВт'!F4,'Воздушные линии'!L12,0))),0)","v":0},"(в текущих ценах)"]
[null,"Плата за строительство кабельных линий, руб. C3",{"$f":"IF(C12=\"да\",IF(Калькулятор!C9='ставки за 1кВт'!D4,'Кабельные линии'!N14,IF(Калькулятор!C9='ставки за 1кВт'!E4,'Кабельные линии'!N15,IF(Калькулятор!C9='ставки за 1кВт'!F4,'Кабельные линии'!N16,0))),0)","v":0},"(в текущих ценах)"]
[null,"Плата за строительство трансформаторных подстанций, руб. C5",{"$f":"IF(C13=\"да\",(IF(Калькулятор!C9='ставки за 1кВт'!D4,'Трансформаторные подстанции'!L19,IF(Калькулятор!C9='ставки за 1кВт'!E4,'Трансформаторные подстанции'!M19,IF(Калькулятор!C9='ставки за 1кВт'!F4,'Трансформаторные подстанции'!N19,0))))*Калькулятор!C8,0)","v":0},"(в текущих ценах)"]
[null,"Плата за строительство пунктов секционирования, руб.    С4",{"$f":"IF(C14=\"да\",(IF(Калькулятор!C9='ставки за 1кВт'!D4,'Пункты секционирования'!M19,IF(Калькулятор!C9='ставки за 1кВт'!E4,'Пункты секционирования'!N19,IF(Калькулятор!C9='ставки за 1кВт'!F4,'Пункты секционирования'!O19,0)))),0)","v":0},"(в текущих ценах)"]
[null,"Плата за строительство источников питания, руб. С7",{"$f":"IF(C15=\"да\",IF(Калькулятор!C9='ставки за 1кВт'!D4,'Источники питания'!K8,IF(Калькулятор!C9='ставки за 1кВт'!E4,'Источники питания'!L8,IF(Калькулятор!C9='ставки за 1кВт'!F4,'Источники питания'!M8,0)))*Калькулятор!C8,0)","v":0},"(в текущих ценах)"]
[null,"Плата за строительство распределительных трансформаторных подстанций, руб.  С6",{"$f":"IF(C16=\"да\",(IF(Калькулятор!C9='ставки за 1кВт'!D4,РТП!K10,IF(Калькулятор!C9='ставки за 1кВт'!E4,РТП!L10,IF(Калькулятор!C9='ставки за 1кВт'!F4,РТП!M10,0))))*Калькулятор!C8,0)","v":0},"(в текущих ценах)"]
[null,"Обеспечение средствами коммерческого учета электрической энергии (мощности), С8",{"$f":"IF(C17=\"да\",(IF(Калькулятор!C9='ставки за 1кВт'!D4,С8_ПУ!M16,IF(Калькулятор!C9='ставки за 1кВт'!E4,С8_ПУ!N16,IF(Калькулятор!C9='ставки за 1кВт'!F4,С8_ПУ!O16,0)))),0)","v":0},"(в текущих ценах)"]
[null,"Плата по стандартизированным тарифным ставкам, руб. (без НДС)",{"$f":"SUM(C24:C31)","v":13164.35},"(в текущих ценах)"]
[]
[null,"Плата по ставкам за единицу максимальной мощности:",null,"Примечания"]
[]
[null,"Tтп = (С1maxN x N) + (           x N) + (            x N) + (             x N) + (             x N) + (            x N) + (             x N)    +    (                х N )"]
[]
[null,"С1, руб./кВт",{"$f":"'C1'!E24","v":334.55},"Единая для всех ТСО"]
[null,"Плата за организационные мероприятия, руб. (без НДС)",{"$f":"C38*Калькулятор!C8","v":0},"(в текущих ценах)"]
[null,"Плата за строительство воздушных линий, руб. C2",{"$f":"IF(Калькулятор!C20=\"Да\",IF(Калькулятор!C9='ставки за 1кВт'!D4,'ВЛ_1 кВт'!L10,IF(Калькулятор!C9='ставки за 1кВт'!E4,'ВЛ_1 кВт'!L11,IF(Калькулятор!C9='ставки за 1кВт'!F4,'ВЛ_1 кВт'!L12,0))),0)","v":0},"(в текущих ценах)"]
[null,"Плата за строительство кабельных линий, руб. C3",{"$f":"IF(Калькулятор!C21=\"Да\",IF(Калькулятор!C9='ставки за 1кВт'!D4,'КЛ_1 кВт'!N14,IF(Калькулятор!C9='ставки за 1кВт'!E4,'КЛ_1 кВт'!N15,IF(Калькулятор!C9='ставки за 1кВт'!F4,'КЛ_1 кВт'!N16,0))),0)","v":0},"(в текущих ценах)"]
[null,"Плата за строительство трансформаторных подстанций, руб.  C5",{"$f":"IF(Калькулятор!C22=\"Да\",IF(Калькулятор!C9='ставки за 1кВт'!D4,'С5_ТП_1 кВт'!R7,IF(Калькулятор!C9='ставки за 1кВт'!E4,'С5_ТП_1 кВт'!R8,IF(Калькулятор!C9='ставки за 1кВт'!F4,'С5_ТП_1 кВт'!R9,0))),0)","v":0},"(в текущих ценах)"]
[null,"Плата за строительство пунктов секционирования, руб.   C4",{"$f":"IF(Калькулятор!C25=\"Да\",IF(Калькулятор!C9='ставки за 1кВт'!D4,'C4_пункты секционирования'!K20,IF(Калькулятор!C9='ставки за 1кВт'!E4,'C4_пункты секционирования'!K21,IF(Калькулятор!C9='ставки за 1кВт'!F4,'C4_пункты секционирования'!K22,0))),0)","v":0},"(в текущих ценах)"]
[null,"Плата за строительство источников питания, руб. C7",{"$f":"IF(Калькулятор!C24=\"Да\",IF(Калькулятор!C9='ставки за 1кВт'!D4,'С7_ИП_1 кВт'!L9,IF(Калькулятор!C9='ставки за 1кВт'!E4,'С7_ИП_1 кВт'!L10,IF(Калькулятор!C9='ставки за 1кВт'!F4,'С7_ИП_1 кВт'!L11,0))),0)","v":0},"(в текущих ценах)"]
[null,"Плата за строительство распределительных трансформаторных подстанций, руб.  С6",{"$f":"IF(Калькулятор!C23=\"Да\",IF(Калькулятор!C9='ставки за 1кВт'!D4,'С6_РТП_1 кВт'!K12,IF(Калькулятор!C9='ставки за 1кВт'!E4,'С6_РТП_1 кВт'!K13,IF(Калькулятор!C9='ставки за 1кВт'!F4,'С6_РТП_1 кВт'!K14,0))),0)","v":0},"(в текущих ценах)"]
[null,"Обеспечение средствами коммерческого учета электрической энергии (мощности), С8",{"$f":"IF(Калькулятор!C26=\"Да\",IF(Калькулятор!C9='ставки за 1кВт'!D4,'С8_1 кВт'!L8,IF(Калькулятор!C9='ставки за 1кВт'!E4,'С8_1 кВт'!L10,IF(Калькулятор!C9='ставки за 1кВт'!F4,'С8_1 кВт'!L12,0))),0)","v":0},"(в текущих ценах)"]
[null,"Плата по ставкам за единицу максимальной мощности, руб. (без НДС)",{"$f":"C39+C40+C41+C43+C44+C45+C42+C46","v":0},"(в текущих ценах)"]
[]
[]
[]
[]
[null,"Внимание! Данные расчеты носят справочный характер и не могут являться окончательными для оплаты стоимости технологического присоединения. \nКалькулятор расчета платы за технологическое присоединение к электрическим сетям предназначен для примерного расчета стоимости размера платы за технологическое присоединение к электрическим сетям территориальных сетевых организаций Челябинской области."]

{"sheet":"C1","index":3,"n_rows":28,"n_cols":5,"rows_kept":28,"cut":false,"hidden":true,"merged":[[10,1,10,2],[15,0,18,4],[0,0,4,4],[20,0,21,0],[20,1,21,2],[20,3,21,3],[6,0,7,0],[6,1,7,2],[6,3,7,3],[23,0,24,0],[23,1,24,1],[23,3,24,3],[23,4,24,4],[25,1,25,2]]}
["Стандартизированная тарифная ставка на покрытие расходов сетевой организации за технологическое присоединение энергопринимающих устройств потребителей электрической энергии, объектов электросетевого хозяйства, принадлежащих сетевым организациям и иным лицам (С1) по мероприятиям, указанным в пункте 16 Методических указаний (кроме подпункта «б») (на территориях городских населенных пунктов и на территориях,не относящихся к территориям городских населенных пунктов)"]
[]
[]
[]
[]
[]
["№ п.п.","Наименование стандартизированной тарифной ставки",null,"Единица измерения","Значение"]
[null,null,null,null,"(без учета НДС)"]
[1,2,3,4,5]
[1,"С1","Стандартизированная тарифная ставка на покрытие расходов сетевой организации за технологическое присоединение энергопринимающих устройств потребителей электрической энергии, объектов электросетевого хозяйства, принадлежащих сетевым организациям и иным лицам, по мероприятиям, указанным в пункте 16 Методических указаний (кроме подпункта «б»),","руб. за одно присоединение",13164.35]
[null,"в том числе:"]
["1.1.","С1.1","Подготовка и выдача сетевой организацией технических условий Заявителю","руб. за одно присоединение ",6373.01]
["1.2.","С1.2","Проверка сетевой организацией выполнения Заявителем технических условий (включая процедуры, предусмотренные подпунктами «г» - «е» пункта 7 Правил технологического присоединения)","руб. за одно присоединение ",6791.34]
[]
[]
["Ставка за единицу максимальной мощности для определения платы за технологическое присоединение к электрическим сетям на уровне напряжения ниже 35 кВ и мощности менее 8 900 кВт на осуществление мероприятий, предусмотренных пунктом 16 (за исключением подпункта «б») Методических указаний (на территориях городских населенных пунктов и на территориях,не относящихся к территориям городских населенных пунктов)"]
[]
[]
[]
[]
["№ п.п.","Наименование стандартизированной тарифной ставки",null,"Единица измерения","Значение"]
[null,null,null,null,"(без учета НДС)"]
[1,2,3,4,5]
[1,"С1maxN","Ставка за единицу максимальной мощности для определения платы за технологическое присоединение к электрическим сетям на уровне напряжения ниже 35 кВ и мощности менее 8 900 кВт на осуществление","руб./кВт",334.55]
[null,null,"мероприятий, предусмотренных пунктом 16 (за исключением подпункта «б») Методических указаний,"]
[null,"в том числе:"]
["1.1.",null,"Подготовка и выдача сетевой организацией технических условий Заявителю","руб./кВт",165]
["1.2.",null,"Проверка сетевой организацией выполнения Заявителем технических условий (включая процедуры, предусмотренные подпунктами «г» - «е» пункта 7 Правил технологического присоединения)","руб./кВт",169.55]

{"sheet":"Воздушные линии","index":4,"n_rows":77,"n_cols":12,"rows_kept":77,"cut":false,"hidden":true,"merged":[[52,1,52,7],[40,1,40,7],[37,1,37,7],[58,1,58,7],[55,1,55,7],[41,1,41,7],[48,1,48,7],[49,1,49,7],[0,0,0,7],[4,1,4,7],[5,1,5,7],[16,1,16,7],[6,1,6,7],[7,1,7,7],[8,1,8,7],[11,1,11,7],[14,1,14,7],[17,1,17,7],[18,1,18,7],[21,1,21,7],[22,1,22,7],[24,1,24,7],[59,1,59,7],[60,1,60,7],[68,1,68,7],[72,1,72,7],[75,1,75,7],[64,1,64,7],[71,1,71,7],[33,1,33,7],[26,1,26,7],[27,1,27,7],[28,1,28,7],[29,1,29,7],[31,1,31,7],[35,1,35,7],[42,1,42,7],[43,1,43,7],[46,1,46,7],[34,1,34,7]]}
["Стандартизированная тарифная ставка на покрытие расходов сетевой организации на строительство воздушных линий электропередачи"]
[]
[null,"Наименование стандартизированной тарифной ставки","Размер ставки в отношении заявителей, осуществляющих технологическое присоединение энергопринимающих устройств \nсвыше 150 кВт \n(на территориях городских населенных пунктов), руб./км","Длина линии, км","Размер ставки в отношении заявителей, осуществляющих технологическое присоединение энергопринимающих устройств \nсвыше 150 кВт\n (на территориях, не относящихся к территориям городских населенных пунктов), руб./км","Длина линии, км","Размер ставки в отношении заявителей, осуществляющих технологическое присоединение энергопринимающих устройств \nне более 150 кВт, руб./км","Длина линии, км"]
["№ п/п",1,2,3,4,5,6,7]
[2,"С2  - Стандартизированная тарифная ставка на покрытие расходов сетевой организации на строительство воздушных линий электропередачи"]
["2.1.","Материал опоры - деревянные",null,null,null,null,null,null,null,null,null,{"$f":"IF(Калькулятор!C9='ставки за 1кВт'!D4,D10,0)","v":0}]
["2.1.1.","Тип провода - изолированный"]
["2.1.1.4.","Материал провода - алюминиевый"]
["2.1.1.4.1","Сечение провода - до 50 мм2 включительно"]
[null,"0,4  кВ  и    ниже",617936.12,null,813416.15,null,0,null,null,null,1,{"$f":"C10*D10+C11*D11+C13*D13+C14*D14+C16*D16+C20*D20+C21*D21+C24*D24+C26*D26+C31*D31+C33*D33+C39*D39+C40*D40+C45*D45+C46*D46+C48*D48+C51*D51+C52*D52+C54*D54+C55*D55+C57*D57+C58*D58+C62*D62+C63*D63+C64*D64+C66*D66+C67*D67+C68*D68+C70*D70+C71*D71+C74*D74+C75*D75+C77*D77","v":0}]
[null,"1-20     кВ",3994630,null,1107736.75,null,0,null,null,null,2,{"$f":"E10*F10+E11*F11+E13*F13+E14*F14+E16*F16+E20*F20+E21*F21+E24*F24+E26*F26+E31*F31+E33*F33+E37*F37+E39*F39+E40*F40+E51*F51+E52*F52+E54*F54+E55*F55+E57*F57+E58*F58+E62*F62+E63*F63+E64*F64+E66*F66+E67*F67+E68*F68+E70*F70+E71*F71+E74*F74+E75*F75+E77*F77","v":0}]
["2.1.1.4.2","Сечение провода - от 50 мм2 до 100 мм2 включительно",null,null,null,null,null,null,null,null,3,{"$f":"(H10+H11+H13+H14+H20+H21+H24+H26+H39+H40++H51+H52+H54+H55+H57+H58+H62+H64+H66+H67+H70+H71+H74+H75+H77+H31+H33+H16)*0","v":0}]
[null,"0,4  кВ  и    ниже",{"$f":"945.89*1000","v":945890},null,1173716.82,null,0]
[null,"1-20     кВ",1864966.56,null,1886443.28,null,0]
["2.1.1.4.3","Сечение провода - от 100 мм2 до 200 мм2 включительно"]
[null,"0,4  кВ  и    ниже",{"$f":"1400.12*1000","v":1400120},null,{"$f":"1400.12*1000","v":1400120},null,0]
["2.1.2."," Тип провода - неизолированный"]
["2.1.2.3.","Материал провода - сталеалюминиевый"]
["2.1.2.3.1","Сечение провода - до 50 мм2 включительно"]
[null,"0,4  кВ  и    ниже",{"$f":"880.9*1000","v":880900},null,1049129.4099999999,null,0]
[null,"1-20     кВ",{"$f":"1290.48*1000","v":1290480},null,{"$f":"2818.51*1000","v":2818510},null,0]
["2.1.2.4.","Материал провода - алюминиевый"]
["2.1.2.4.1","Сечение провода - до 50 мм2 включительно"]
[null,"0,4  кВ  и    ниже",{"$f":"126.53*1000","v":126530},null,{"$f":"833.15*1000","v":833150},null,0]
["2.1.2.4.2","Сечение провода - от 50мм2 до 100 мм2 включительно"]
[null,"1-20     кВ",{"$f":"10450.95*1000","v":10450950},null,{"$f":"10450.95*1000","v":10450950},null,0]
["2.2.","Материал опоры - металлические"]
["2.2.1.","Тип провода – изолированный"]
["2.2.1.4","Материал провода – алюминиевый"]
["2.2.1.4.1","Сечение провода – до   50 мм2 включительно"]
[null,"0,4  кВ  и    ниже",{"$f":"2286.33*1000","v":2286330},null,{"$f":"2286.33*1000","v":2286330},null,0]
["2.2.1.4.2","Сечение провода - от 50мм2 до 100 мм2 включительно"]
[null,"0,4  кВ  и    ниже",{"$f":"2449.68*1000","v":2449680},null,{"$f":"2449.68*1000","v":2449680},null,0]
["2.2.2.","Тип провода - неизолированный"]
["2.2.2.3.","Материал провода - сталеалюминиевый"]
["2.2.2.3.2","Сечение провода - от 50  до 100 мм2 включительно"]
[null,"1-20     кВ","-",null,5870590,null,0]
["2.2.2.3.3","Сечение провода - от 100 до 200 мм2 включительно"]
[null,"1-20     кВ",{"$f":"15387.09*1000","v":15387090},null,{"$f":"16110.28*1000","v":16110280},null,0]
[null,"110 кВ",{"$f":"12418.79*1000","v":12418790},null,{"$f":"12418.79*1000","v":12418790},null,0]
["2.3."," Материал опоры - железобетонные"]
["2.3.1","Тип провода - изолированный"]
["2.3.1.3","Материал провода - сталеалюминиевый"]
["2.3.1.3.1","Сечение провода – до   50 мм2 включительно"]
[null,"0,4  кВ  и    ниже",628870,null,"-",null,0]
[null,"1-20     кВ",660060,null,"-",null,0]
["2.3.1.3.2","Сечение провода – от   50 мм2 до  100    мм2   включительно"]
[null,"1-20     кВ",909010,null,"-",null,0]
["2.3.1.4","Материал провода - алюминиевый"]
["2.3.1.4.1","Сечение провода - до 50 мм2 включительно"]
[null,"0,4  кВ  и    ниже",777500.94,null,793546.36,null,0]
[null,"1-20     кВ",1369522.11,null,1357793.15,null,0]
["2.3.1.4.2"," Сечение провода - от 50 мм2 до 100 мм2 включительно"]
[null,"0,4  кВ  и    ниже",943826.69,null,1185816.17,null,0]
[null,"1-20     кВ",1942934.75,null,1523438.54,null,0]
["2.3.1.4.3","Сечение провода - от 100 до 200 мм2 включительно"]
[null,"0,4  кВ  и    ниже",1218895.28,null,{"$f":"598.71*1000","v":598710},null,0]
[null,"1-20     кВ",{"$f":"4846.61*1000","v":4846610},null,{"$f":"1278.96*1000","v":1278960},null,0]
["2.3.2.","Тип провода - неизолированный"]
["2.3.2.3.","Материал провода - сталеалюминиевый"]
["2.3.2.3.1","Сечение провода - до 50 мм2 включительно"]
[null,"0,4  кВ  и    ниже",{"$f":"715.21*1000","v":715210},null,{"$f":"531.8*1000","v":531800},null,0]
[null,"1-20     кВ",1218791.19,null,972734.09,null,0]
[null,"35 кВ",{"$f":"8413*1000","v":8413000},null,{"$f":"8413*1000","v":8413000},null,0]
["2.3.2.3.2","Сечение провода - от 50 мм2 до 100 мм2 включительно"]
[null,"0,4  кВ  и ниже",{"$f":"1713.18*1000","v":1713180},null,1455638.59,null,0]
[null,"1-20     кВ",{"$f":"79419.13*1000","v":79419130},null,{"$f":"79419.13*1000","v":79419130},null,0]
[null,"110  кВ и выше",18396660,null,18396660,null,0]
["2.3.2.3.3","Сечение провода - от 100 до 200 мм2 включительно"]
[null,"1-20 кВ",{"$f":"2958.03*1000","v":2958030},null,{"$f":"2958.03*1000","v":2958030},null,0]
[null,"110  кВ и выше",{"$f":"43453.04*1000","v":43453040},null,{"$f":"43453.04*1000","v":43453040},null,0]
["2.3.2.4.","Материал провода - алюминевый"]
["2.3.2.4.1","Сечение провода - до 50 мм2 включительно"]
[null,"0,4  кВ  и ниже",{"$f":"1331.65*1000","v":1331650},null,{"$f":"576.03*1000","v":576030},null,0]
[null,"1-20 кВ",1454348.96,null,{"$f":"1213.76*1000","v":1213760},null,0]
["2.3.2.4.3","Сечение провода - от 100 мм2 до 200м2 включительно"]
[null,"1-20 кВ",{"$f":"1067.51*1000","v":1067510},null,{"$f":"1067.51*1000","v":1067510},null,0]

{"sheet":"Кабельные линии","index":5,"n_rows":114,"n_cols":15,"rows_kept":114,"cut":false,"hidden":true,"merged":[[38,1,38,7],[33,1,33,7],[41,1,41,7],[47,1,47,7],[48,1,48,7],[44,1,44,7],[24,1,24,7],[27,1,27,7],[30,1,30,7],[34,1,34,7],[35,1,35,7],[4,1,4,7],[5,1,5,7],[21,1,21,7],[0,0,0,7],[6,1,6,7],[7,1,7,7],[11,1,11,7],[14,1,14,7],[17,1,17,7],[20,1,20,7],[1,2,1,7],[1,1,2,1],[1,0,2,0],[8,1,8,7],[51,1,51,7],[57,1,57,7],[65,1,65,7],[66,1,66,7],[67,1,67,7],[54,1,54,7],[61,1,61,7],[62,1,62,7],[63,1,63,7],[60,1,60,7],[109,1,109,7],[112,1,112,7],[95,1,95,7],[98,1,98,7],[101,1,101,7],[104,1,104,7],[107,1,107,7],[105,1,105,7],[72,1,72,7],[69,1,69,7],[85,1,85,7],[86,1,86,7],[92,1,92,7],[83,1,83,7],[91,1,91,7],[90,1,90,7],[74,1,74,7],[75,1,75,7],[76,1,76,7],[79,1,79,7],[81,1,81,7],[70,1,70,7],[77,1,77,7],[88,1,88,7]]}
["Стандартизированная тарифная ставка на покрытие расходов сетевой организации на строительство кабельных линий электропередачи"]
[null,"Наименование стандартизированной тарифной ставки","Размер ставки за единицу максимальной мощности, в отношении заявителей, осуществляющих технологическое присоединение энергопринимающих устройств \nруб./кВт (без учета НДС)"]
[null,null,"\nсвыше 150 кВт, \nна территориях городских населенных пунктов ","Длина линии, км","свыше 150 кВт, \nна территориях, \nне относящихся к территориям городских населенных пунктов","Длина линии, км","\nне более 150 кВт","Длина линии, км"]
["№ п/п",1,2,3,4,5,6,7]
[3,"С3 - Стандартизированная тарифная ставка на покрытие расходов сетевой организации на строительство кабельных линий электропередачи"]
["3.1.","Способ прокладки - в траншеях"]
["3.1.1.","Одножильные"]
["3.1.1.1.","Кабели с резиновой и пластмассовой изоляцией"]
["3.1.1.1.1","Сечение провода - до 50 мм2 включительно"]
[null,"0,4 кВ и ниже",1082300,null,"-",null,0]
[null,"1-20 кВ",1851110,null,"-",null,0]
["3.1.1.1.2","Сечение провода - от 50 мм2 до 100 мм2 включительно"]
[null,"0,4 кВ и ниже",1935920,null,{"$f":"1935.92*1000","v":1935920},null,0]
[null,"1-20 кВ",1716768.15,null,2120495.04,null,0,null,null,null,null,null,1,{"$f":"C10*D10+C11*D11+C13*D13+C14*D14+C16*D16+C17*D17+C19*D19+C20*D20+C23*D23+C24*D24+C26*D26+C27*D27+C29*D29+C30*D30+C32*D32+C33*D33+C37*D37+C38*D38+C40*D40+C41*D41+C43*D43+C44*D44+C46*D46+C47*D47+C50*D50+C51*D51+C53*D53+C54*D54+C56*D56+C57*D57+C59*D59+C60*D60+C65*D65+C69*D69+C72*D72+C74*D74+C79*D79+C81*D81+C83*D83+C85*D85+C88*D88+C90*D90+C94*D94+C95*D95+C97*D97+C98*D98+C100*D100+C101*D101+C103*D103+C104*D104+C107*D107+C109*D109+C111*D111+C112*D112+C114*D114","v":0}]
["3.1.1.1.3","Сечение провода - от 100 до 200 мм2 включительно",null,null,null,null,null,null,null,null,null,null,2,{"$f":"E13*F13+E14*F14+E16*F16+E17*F17+E19*F19+E20*F20+E23*F23+E24*F24+E26*F26+E27*F27+E29*F29+E30*F30+E32*F32+E33*F33+E37*F37+E38*F38+E40*F40+E41*F41+E43*F43+E44*F44+E46*F46+E47*F47+E50*F50+E51*F51+E53*F53+E54*F54+E56*F56+E57*F57+E59*F59+E60*F60+E65*F65+E69*F69+E74*F74+E79*F79+E81*F81+E83*F83+E85*F85+E88*F88+E94*F94+E97*F97+E100*F100+E101*F101+E103*F103+E109*F109+E111*F111+E112*F112+E114*F114","v":0}]
[null,"0,4 кВ и ниже",1295668.1100000001,null,{"$f":"1870.62*1000","v":1870620},null,0,null,null,null,null,null,3,{"$f":"G10*H10+G11*H11+H13*G13+H14*G14+H16*G16+H17*G17+H19*G19+H20*G20+H23*G23+H24*G24+H26*G26+H27*G27+H29*G29+H30*G30+H32*G32+H33*G33+G37*H37+H38*G38+H40*G40+H41*G41+H43*G43+H44*G44+H46*G46+H47*G47+H50+G50+H51*G51+H53*G53+H54*G54+H56*G56+H57*G57+H59*G59+H60*G60+H65*G65+H69*G69+H81*G81+H83*G83+H85*G85+H97*G97+H100*G100+H101*G101+H103*G103+H109*G109+H112*G112+H114*G114+G74*H74+G88*H88+G94*H94+G111*H111","v":0}]
[null,"1-20 кВ",4138377.81,null,6125403.4699999997,null,0]
["3.1.1.1.4","Сечение провода - от 200 до 500 мм2 включительно",null,null,null,null,null,null,null,null,null,null,null,"Ошибка"]
[null,"0,4 кВ и ниже",2085718.48,null,{"$f":"2605.5*1000","v":2605500},null,0,null,null,null,null,null,null,"D","Территория подключения не соотвествует заданным параметрам. Если мощность превышает 150 кВт заполните колонку F. Если мощность менее 150 кВт заполните колонку H"]
[null,"1-20 кВ",5213192.93,null,{"$f":"12503.87*1000","v":12503870},null,0,null,null,null,null,null,null,"F","Территория подключения не соотвествует заданным параметрам. Если мощность превышает 150 кВт заполните колонку D. Если мощность менее 150 кВт заполните колонку H"]
["3.1.1.2.","Кабели с бумажной изоляцией",null,null,null,null,null,null,null,null,null,null,null,"H","Вводимое значение не соотвествует заданным параметрам. Если мощность превышает 150 кВт заполните колонку D или F"]
["3.1.1.2.1","Сечение провода - до 50 мм2 включительно"]
[null,"0,4 кВ и ниже",{"$f":"1016.61*1000","v":1016610},null,{"$f":"1016.61*1000","v":1016610},null,0]
[null,"1-20 кВ",{"$f":"1614.26*1000","v":1614260},null,{"$f":"1000.86*1000","v":1000860},null,0]
["3.1.1.2.2","Сечение провода - от 50 мм2 до 100 мм2 включительно",null,null,null,null,null,null,null,null,null,null,null,"Сообщение"]
[null,"0,4 кВ и ниже",{"$f":"3199.5*1000","v":3199500},null,{"$f":"3199.5*1000","v":3199500},null,0,null,null,null,null,null,null,"D","Вводимое значение в отношении заявителей на территории городских населенных пунктов"]
[null,"1-20 кВ",{"$f":"8723.66*1000","v":8723660},null,{"$f":"3314.67*1000","v":3314670},null,0,null,null,null,null,null,null,"F","Вводимое значение в отношении заявителей на территориях, не относящихся к территориям городских населенных пунктов"]
["3.1.1.2.3","Сечение провода - от 100 до 200 мм2 включительно",null,null,null,null,null,null,null,null,null,null,null,"H","Вводимое значение в отношении заявителей, осуществляющих технологическое присоединение энергопринимающих устройств \nне более 150 кВт"]
[null,"0,4 кВ и ниже",1227177.74,null,{"$f":"1239.88*1000","v":1239880},null,0]
[null,"1-20 кВ",1178110.3400000001,null,{"$f":"4313.08*1000","v":4313080},null,0]
["3.1.1.2.4","Сечение провода - от 200 до 500 мм2 включительно"]
[null,"0,4 кВ и ниже",{"$f":"5801.8*1000","v":5801800},null,{"$f":"5801.8*1000","v":5801800},null,0,null,null,null,null,null,null,"D",{"$f":"AND(Калькулятор!$C$9='ставки за 1кВт'!$D$4,Калькулятор!$C$8>150)","v":false}]
[null,"1-20 кВ",{"$f":"3500.94*1000","v":3500940},null,{"$f":"3352.96*1000","v":3352960},null,0,null,null,null,null,null,null,"F",{"$f":"AND(Калькулятор!$C$9='ставки за 1кВт'!$E$4,Калькулятор!$C$8>150)","v":false}]
["3.1.2.","Многожильные",null,null,null,null,null,null,null,null,null,null,null,"H",{"$f":"AND(Калькулятор!$C$9='ставки за 1кВт'!$F$4,Калькулятор!$C$8<150)","v":false}]
["3.1.2.1.","Кабели с резиновой и пластмассовой изоляцией"]
["3.1.2.1.1","Сечение провода - до 50 мм2 включительно"]
[null,"0,4 кВ и ниже",787771.36,null,{"$f":"157.82*1000","v":157820},null,0]
[null,"1-20 кВ",{"$f":"566.19*1000","v":566190},null,{"$f":"566.19*1000","v":566190},null,0]
["3.1.2.1.2","Сечение провода - от 50 мм2 до 100 мм2 включительно"]
[null,"0,4 кВ и ниже",2813205.11,null,1795749.12,null,0]
[null,"1-20 кВ",{"$f":"2779.34*1000","v":2779340},null,{"$f":"2481.39*1000","v":2481390},null,0]
["3.1.2.1.3","Сечение провода - от 100 до 200 мм2 включительно"]
[null,"0,4 кВ и ниже",2218767.4900000002,null,2820526.36,null,0]
[null,"1-20 кВ",3061748.64,null,2355060,null,0]
["3.1.2.1.4","Сечение провода - от 200 до 500 мм2 включительно"]
[null,"0,4 кВ и ниже",4114568.65,null,{"$f":"3795.98*1000","v":3795980},null,0]
[null,"1-20 кВ",3568797.48,null,{"$f":"2768*1000","v":2768000},null,0]
["3.1.2.2.","Кабели с бумажной изоляцией"]
["3.1.2.2.1","Сечение провода - до 50 мм2 включительно"]
[null,"0,4 кВ и ниже",{"$f":"839.9*1000","v":839900},null,{"$f":"1773.01*1000","v":1773010},null,0]
[null,"1-20 кВ",2363656.0699999998,null,2354608.37,null,0]
["3.1.2.2.2","Сечение провода - от 50 мм2 до 100 мм2 включительно"]
[null,"0,4 кВ и ниже",{"$f":"1532.21*1000","v":1532210},null,{"$f":"1532.21*1000","v":1532210},null,0]
[null,"1-20 кВ",1886468.01,null,2087756.72,null,0]
["3.1.2.2.3","Сечение провода - от 100 до 200 мм2 включительно"]
[null,"0,4 кВ и ниже",{"$f":"1278.9*1000","v":1278900},null,1160712.75,null,0]
[null,"1-20 кВ",3553273.62,null,2732433.7,null,0]
["3.1.2.2.4","Сечение провода - от 200 до 500 мм2 включительно"]
[null,"0,4 кВ и ниже",{"$f":"2951.24*1000","v":2951240},null,{"$f":"2951.24*1000","v":2951240},null,0]
[null,"1-20 кВ",5227708.4000000004,null,{"$f":"5897.2*1000","v":5897200},null,0]
["3.5.","Способ прокладки - в галереях и эстакадах"]
["3.5.1.","Одножильные"]
["3.5.1.1.","Кабели с резиновой и пластмассовой изоляцией"]
["3.5.1.1.4","Сечение провода - от 200м2 до 500 мм2 включительно"]
[null,"1-20 кВ",{"$f":"5539.36*1000","v":5539360},null,{"$f":"5539.36*1000","v":5539360},null,0]
["3.5.2.","Многожильные",null,null,null,null,0]
["3.5.2.1.","Кабели с резиновой и пластмассовой изоляцией",null,null,null,null,0]
["3.5.2.1.1","Сечение провода - до 50 мм2 включительно"]
[null,"0,4 кВ и ниже",{"$f":"280.73*1000","v":280730},null,{"$f":"280.73*1000","v":280730},null,0]
["3.5.2.2.","Кабели с бумажной изоляцией"]
["3.5.2.2.1.","Сечение провода - до 50 мм2 включительно"]
[null,"1-20 кВ",1097068.9099999999,null,"-",null,0]
["3.5.2.2.3.","Сечение провода - от 100 до 200 мм2 включительно"]
[null,"1-20 кВ",{"$f":"3792.55*1000","v":3792550},null,{"$f":"3792.55*1000","v":3792550},null,0]
["3.6.","Способ прокладки - горизонтальное наклонное бурение"]
["3.6.1.","Одножильные"]
["3.6.1.1.","Кабели с резиновой и пластмассовой изоляцией"]
["3.6.1.1.1","Сечение провода - до 50 мм2 включительно"]
[null,"1-20 кВ",10397570,null,10397570,null,0]
["3.6.1.1.2","Сечение провода - от 50 мм2 до 100 мм2 включительно"]
[null,"1-20 кВ",3464958.77,null,{"$f":"2497.28*1000","v":2497280},null,0]
["3.6.1.1.3","Сечение провода - от 100 до 200 мм2 включительно"]
[null,"1-20 кВ",5214959.71,null,{"$f":"5445.54*1000","v":5445540},null,0]
["3.6.1.1.4","Сечение провода - от 200 до 500 мм2 включительно"]
[null,"1-20 кВ",3577128.55,null,{"$f":"501.35*1000","v":501350},null,0]
["3.6.1.2","Кабели с бумажной изоляцией"]
["3.6.1.2.2.","Сечение провода - от 50 мм2 до 100 мм2 включительно"]
[null,"1-20 кВ",{"$f":"1479.62*1000","v":1479620},null,{"$f":"1479.62*1000","v":1479620},null,0]
["3.6.1.2.4.","Сечение провода - от 200 мм2 до 500 мм2 включительно"]
[null,"1-20 кВ",9723110,null,"-",null,0]
["3.6.2.","Многожильные"]
["3.6.2.1.","Кабели с резиновой и пластмассовой изоляцией"]
["3.6.2.1.1","Сечение провода - до 50 мм2 включительно"]
[null,"0,4 кВ и ниже",1688894.01,null,{"$f":"3730.34*1000","v":3730340},null,0]
[null,"1-20 кВ",9645790,null,"-",null,0]
["3.6.2.1.2","Сечение провода - от 50 мм2 до 100 мм2 включительно"]
[null,"0,4 кВ и ниже",1010225.88,null,{"$f":"3325.37*1000","v":3325370},null,0]
[null,"1-20 кВ",9645790,null,"-",null,0]
["3.6.2.1.3","Сечение провода - от 100 до 200 мм2 включительно"]
[null,"0,4 кВ и ниже",4413565.01,null,{"$f":"5113.03*1000","v":5113030},null,0]
[null,"1-20 кВ",{"$f":"16016.78*1000","v":16016780},null,{"$f":"15243.04*1000","v":15243040},null,0]
["3.6.2.1.4","Сечение провода - от 200 до 500 мм2 включительно"]
[null,"0,4 кВ и ниже",6832411.54,null,{"$f":"6068.98*1000","v":6068980},null,0]
[null,"1-20 кВ",7387470,null,"-"]
["3.6.2.2.","Кабели с бумажной изоляцией"]
["3.6.2.2.1","Сечение провода - до 50 мм2 включительно"]
[null,"1-20 кВ",11353980,null,"-",null,0]
["3.6.2.2.2","Сечение провода - от 50 мм2 до 100 мм2 включительно"]
[null,"1-20 кВ",2436207.34,null,{"$f":"1878.86*1000","v":1878860},null,0]
["3.6.2.2.3","Сечение провода - от 100 до 200 мм2 включительно"]
[null,"0,4 кВ и ниже",{"$f":"1328.45*1000","v":1328450},null,{"$f":"1328.45*1000","v":1328450},null,0]
[null,"1-20 кВ",6058344.5199999996,null,{"$f":"5726.1*1000","v":5726100},null,0]
["3.6.2.2.4","Сечение провода - от 200 до 500 мм2 включительно"]
[null,"1-20 кВ",3255072.86,null,{"$f":"1977.74*1000","v":1977740},null,0]

{"sheet":"Пункты секционирования","index":6,"n_rows":19,"n_cols":15,"rows_kept":19,"cut":false,"hidden":true,"merged":[[13,1,13,7],[14,1,14,7],[16,1,16,7],[6,1,6,7],[0,0,0,7],[7,1,7,7],[8,1,8,7],[10,1,10,7]]}
["Стандартизированная тарифная ставка на покрытие расходов сетевой организации на строительство пунктов секционирования (реклоузеров, распределительных пунктов, переключательных пунктов)"]
[]
[]
[]
[null,"Наименование стандартизированной тарифной ставки","Размер ставки в отношении заявителей, осуществляющих технологическое присоединение энергопринимающих устройств \nсвыше 150 кВт \n(на территориях городских населенных пунктов), руб./шт","шт.","Размер ставки в отношении заявителей, осуществляющих технологическое присоединение энергопринимающих устройств \nсвыше 150 кВт\n (на территориях, не относящихся к территориям городских населенных пунктов), руб./шт","шт.","Размер ставки в отношении заявителей, осуществляющих технологическое присоединение энергопринимающих устройств \nне более 150 кВт, руб./шт","шт."]
["№ п/п",1,2,3,4,5,6,7]
[4,"С4 - Стандартизированная тарифная ставка на покрытие расходов сетевой организации на строительство пунктов секционирования (реклоузеров, распределительных пунктов, переключательных пунктов)"]
["4.1","Реклоузер"]
["4.1.3","Номинальный ток - от 250 А до 500 А включительно"]
[null,"1 - 20 кВ",{"$f":"393.3*1000","v":393300},null,1206095.25,null,0,null,null,null,null,null,{"$f":"C10*D10","v":0},{"$f":"E10*F10","v":0},{"$f":"G10*H10","v":0}]
["4.1.4","Номинальный ток - от 500 А до 1000 А включительно"]
[null,"1 - 20 кВ",1288492.26,null,{"$f":"1335.93*1000","v":1335930},null,0,null,null,null,null,null,{"$f":"C12*D12","v":0},{"$f":"E12*F12","v":0},{"$f":"G12*H12","v":0}]
[null,"35 кВ",{"$f":"484.45*1000","v":484450},null,{"$f":"484.45*1000","v":484450},null,0,null,null,null,null,null,0,0,0]
["4.2","Распределительные пункты (РП)"]
["4.2.2","Номинальный ток - от 100 А до 250 А включительно"]
[null,"1 - 20 кВ",{"$f":"602.13*1000","v":602130},null,{"$f":"602.13*1000","v":602130},null,0,null,null,null,null,null,{"$f":"C16*D16","v":0},0,0]
["4.2.4","Номинальный ток - от 500 А до 1000 А включительно"]
[null,"1 - 20 кВ",{"$f":"6787.76*1000","v":6787760},null,{"$f":"8788.54*1000","v":8788540},null,0,null,null,null,null,null,{"$f":"C18*D18","v":0},0,0]
[null,null,null,null,null,null,null,null,null,null,null,null,{"$f":"SUM(M10:M18)","v":0},{"$f":"SUM(N10:N18)","v":0},0]

{"sheet":"Трансформаторные подстанции","index":7,"n_rows":19,"n_cols":14,"rows_kept":19,"cut":false,"hidden":true,"merged":[[4,1,4,7],[0,0,0,7],[5,1,5,7],[12,1,12,7]]}
["Стандартизированная тарифная ставка на покрытие расходов сетевой организации на строительство трансформаторных подстанций подстанций (ТП), за исключением распределительных трансформаторных подстанций (РТП), с уровнем напряжения до 35 кВ"]
[]
[null,"Наименование стандартизированной тарифной ставки","Размер ставки в отношении заявителей, осуществляющих технологическое присоединение энергопринимающих устройств \nсвыше 150 кВт \n(на территориях городских населенных пунктов), руб./кВт","наличие","Размер ставки в отношении заявителей, осуществляющих технологическое присоединение энергопринимающих устройств \nсвыше 150 кВт\n (на территориях, не относящихся к территориям городских населенных пунктов), руб./кВт","наличие","Размер ставки в отношении заявителей, осуществляющих технологическое присоединение энергопринимающих устройств \nне более 150 кВт, руб./кВт","наличие"]
["№ п/п",1,2,3,4,5,6,7]
["5","С5 - Трансформаторные подстанции (ТП), за исключением распределительных трансформаторных подстанций (РТП)"]
["5.1.","Однотрансформаторные"]
["5.1.1","Трансформаторная мощность - до 25 кВА включительно",11708.71,null,18798.73,null,0,null,null,null,null,{"$f":"IF(D7=\"да\",C7,0)","v":0},{"$f":"IF(F7=\"да\",E7,0)","v":0},{"$f":"IF(H7=\"да\",G7,0)","v":0}]
["5.1.2","Трансформаторная мощность - от 25 кВА до 100 кВА включительно",7164.58,null,11170.56,null,0,null,null,null,null,{"$f":"IF(D8=\"да\",C8,0)","v":0},{"$f":"IF(F8=\"да\",E8,0)","v":0},{"$f":"IF(H8=\"да\",G8,0)","v":0}]
["5.1.3","Трансформаторная мощность - от 100 кВА до 250 кВА включительно",4581.62,null,4699.6899999999996,null,0,null,null,null,null,0,0,0]
["5.1.4","Трансформаторная мощность - от 250 кВА до 500 кВА включительно",4418.2299999999996,null,11202.74,null,0,null,null,null,null,0,0,0]
["5.1.5","Трансформаторная мощность - от 500 кВА до 900 кВА включительно",6132.35,null,2496.91,null,0,null,null,null,null,0,0,0]
["5.1.6","Трансформаторная мощность - свыше 1000 кВА ",1276.52,null,2076.06,null,0,null,null,null,null,0,0,0]
["5.2.","Двухтрансформаторные и более "]
["5.2.3","Трансформаторная мощность - от 100 кВА до 250 кВА включительно",12632.67,null,7776.59,null,0,null,null,null,null,{"$f":"IF(D14=\"да\",C14,0)","v":0},0,{"$f":"IF(H14=\"да\",G14,0)","v":0}]
["5.2.4","Трансформаторная мощность - от 250 кВА до 500 кВА включительно",15515.45,null,7495.66,null,0,null,null,null,null,0,0,{"$f":"IF(H15=\"да\",G15,0)","v":0}]
["5.2.5","Трансформаторная мощность - от 500 кВА до 900 кВА включительно",13564.92,null,4978.96,null,0,null,null,null,null,0,0,0]
["5.2.6","Трансформаторная мощность - свыше 1000 кВА",5772.91,null,3055.94,null,0,null,null,null,null,0,0,0]
[]
[null,null,null,null,null,null,null,null,null,null,null,{"$f":"SUM(L7:L17)","v":0},{"$f":"SUM(M7:M17)","v":0},{"$f":"SUM(N7:N17)","v":0}]

{"sheet":"РТП","index":8,"n_rows":10,"n_cols":13,"rows_kept":10,"cut":false,"hidden":true,"merged":[[0,0,0,7],[4,1,4,7],[5,1,5,7],[7,1,7,7]]}
["Стандартизированная тарифная ставка на покрытие расходов сетевой организации на строительство распределительных трансформаторных подстанций (РТП) с уровнем напряжения до 35 кВ"]
[]
[null,"Наименование стандартизированной тарифной ставки","Размер ставки в отношении заявителей, осуществляющих технологическое присоединение энергопринимающих устройств \nсвыше 150 кВт \n(на территориях городских населенных пунктов), руб./кВт","наличие","Размер ставки в отношении заявителей, осуществляющих технологическое присоединение энергопринимающих устройств \nсвыше 150 кВт\n (на территориях, не относящихся к территориям городских населенных пунктов), руб./кВт","наличие","Размер ставки в отношении заявителей, осуществляющих технологическое присоединение энергопринимающих устройств \nне более 150 кВт, руб./кВт","наличие"]
["№ п/п",1,2,3,4,5,6,7]
["6","С6 - Распределительные трансформаторные подстанции (РТП)"]
["6.1.","Однотрансформаторные"]
["6.1.2","Трансформаторная мощность - от 25 кВА до 100 кВА включительно",64128.75,null,64128.75,null,0,null,null,null,{"$f":"IF(D7=\"да\",C7,0)","v":0},{"$f":"IF(F7=\"да\",E7,0)","v":0},{"$f":"IF(H7=\"да\",G7,0)","v":0}]
["6.2.","Двухтрансформаторные и более"]
["6.2.6","Трансформаторная мощность - свыше 1000 кВА ","4 285, 86",null,"4 285, 86",null,0,null,null,null,{"$f":"IF(D9=\"да\",C9,0)","v":0},{"$f":"IF(F9=\"да\",E9,0)","v":0},{"$f":"IF(H9=\"да\",G9,0)","v":0}]
[null,null,null,null,null,null,null,null,null,null,{"$f":"SUM(K7:K9)","v":0},{"$f":"SUM(L7:L9)","v":0},0]

{"sheet":"Источники питания","index":9,"n_rows":8,"n_cols":13,"rows_kept":8,"cut":false,"hidden":true,"merged":[[0,0,0,7],[6,1,6,7]]}
["Стандартизированная тарифная ставка на покрытие расходов сетевой организации на строительство подстанций уровнем напряжения 35 кВ и выше (ПС)"]
[]
[]
[]
[null,"Наименование стандартизированной тарифной ставки","Размер ставки в отношении заявителей, осуществляющих технологическое присоединение энергопринимающих устройств \nсвыше 150 кВт \n(на территориях городских населенных пунктов), руб./кВт","наличие","Размер ставки в отношении заявителей, осуществляющих технологическое присоединение энергопринимающих устройств \nсвыше 150 кВт\n (на территориях, не относящихся к территориям городских населенных пунктов), руб./кВт","наличие","Размер ставки в отношении заявителей, осуществляющих технологическое присоединение энергопринимающих устройств \nне более 150 кВт, руб./кВт","наличие"]
["№ п/п",1,2,3,4,5,6,7]
["7","С7 - Подстанции уровнем напряжения 35 кВ и выше (ПС)"]
["7.2.","Двухтрансформаторные подстанции\n110/6 (10) кВ",14703.84,null,11991.69,null,0,null,null,null,{"$f":"IF(D8=\"да\",C8,0)","v":0},{"$f":"IF(F8=\"да\",E8,0)","v":0},{"$f":"IF(H8=\"да\",G8,0)","v":0}]

{"sheet":"С1_1кВт","index":10,"n_rows":8,"n_cols":5,"rows_kept":8,"cut":false,"hidden":true,"merged":[[0,0,0,4],[2,1,2,2],[5,1,5,2]]}
["Ставка за единицу максимальной мощности для определения платы \nза технологическое присоединение к электрическим сетям на уровне напряжения ниже 35 кВ и мощности менее 8 900 кВт на осуществление мероприятий, предусмотренных пунктом 16 (за исключением подпункта «б») Методических указаний \n(на территориях городских населенных пунктов и на территориях, \nне относящихся к территориям городских населенных пунктов)"]
[]
["№ п.п.","Наименование стандартизированной тарифной ставки",null,"Единица измерения","Значение (без учета НДС)"]
[1,2,3,4,5]
[1,"С1maxN","Ставка за единицу максимальной мощности для определения платы за технологическое присоединение к электрическим сетям на уровне напряжения ниже 35 кВ и мощности менее 8 900 кВт на осуществление \nмероприятий, предусмотренных пунктом 16 (за исключением подпункта «б») Методических указаний,","руб./кВт",251.36]
[null,"в том числе:"]
["1.1.",null,"Подготовка и выдача сетевой организацией технических условий Заявителю","руб./кВт",119.34]
["1.2.",null,"Проверка сетевой организацией выполнения Заявителем технических условий (включая процедуры, предусмотренные подпунктами «г» - «е» пункта 7 Правил технологического присоединения)","руб./кВт",132.02000000000001]

{"sheet":"С8_ПУ","index":11,"n_rows":16,"n_cols":15,"rows_kept":16,"cut":false,"hidden":true,"merged":[[9,1,9,7],[11,1,11,7],[13,1,13,7],[0,0,0,7],[4,1,4,7],[6,1,6,7],[5,1,5,7],[8,1,8,7]]}
["Стандартизированная тарифная ставка на покрытие расходов сетевой организации на строительство воздушных линий электропередачи"]
[]
[null,"Наименование стандартизированной тарифной ставки","Размер ставки в отношении заявителей, осуществляющих технологическое присоединение энергопринимающих устройств \nсвыше 150 кВт \n(на территориях городских населенных пунктов), \nрублей за точку учета","Количество   точек учета, шт","Размер ставки в отношении заявителей, осуществляющих технологическое присоединение энергопринимающих устройств \nсвыше 150 кВт\n (на территориях, не относящихся к территориям городских населенных пунктов), \nрублей за точку учета","Количество   точек учета, шт","Размер ставки в отношении заявителей, осуществляющих технологическое присоединение энергопринимающих устройств \nне более 150 кВт, рублей за точку учета","Количество   точек учета, шт"]
["№ п/п",1,2,3,4,5,6,7]
[8,"С8  - Стандартизированная тарифная ставка на покрытие расходов сетевой организации на обеспечение средствами коммерческого учета электрической энергии (мощности)"]
["8.1.","однофазные",null,null,null,null,null,null,null,null,null,{"$f":"IF(Калькулятор!C9='ставки за 1кВт'!D4,D8,0)","v":0}]
["8.1.1.","прямого     включения"]
[null,"0,4  кВ  и  ниже   без   ТТ",17521.13,null,17521.13,null,17521.13,null,null,null,1,{"$f":"C8*D8+C11*D11+C13*D13+C15*D15","v":0}]
["8.2.","трехфазные"]
["8.2.1.","прямого     включения",null,null,null,null,null,null,null,null,2,{"$f":"E8*F8+E11*F11+E13*F13+E15*F15","v":0}]
[null,"0,4  кВ  и  ниже   без   ТТ",30036.22,null,30036.22,null,30036.22]
["8.2.2.","полукосвенного     включения",null,null,null,null,null,null,null,null,3,{"$f":"G8*H8+G11*H11+G13*H13+G15*H15","v":0}]
[null,"0,4  кВ  и    ниже     с    ТТ",33790.74,null,33790.74,null,33790.74]
["8.2.3.","косвенного     включения"]
[null,"1 - 20 кВ",312973.05,null,312973.05,null,312973.05]
[null,null,null,null,null,null,null,null,null,null,null,null,{"$f":"L8","v":0},{"$f":"L10","v":0},{"$f":"L12","v":0}]

{"sheet":"реестр","index":12,"n_rows":48,"n_cols":2,"rows_kept":48,"cut":false,"hidden":true,"merged":[]}
[null,"Полное (сокращенное) наименование организации"]
[1,"Филиал открытого акционерного общества «Межрегиональная распределительная сетевая компания Урала» - «Челябэнерго» (Филиал ОАО «МРСК Урала» - «Челябэнерго»)"]
[2,"Акционерное общество «Автомобильный завод «Урал» (АО «Автомобильный завод «Урал», АО «АЗ «Урал»)"]
[3,"Акционерное общество «Оборонэнерго» Филиал «Уральский» (АО «Оборонэнерго» Филиал «Уральский»)"]
[4,"Акционерное общество «Горэлектросеть» (АО «Горэлектросеть»)"]
[5,"Акционерное общество «Трансэнерго» (АО «Трансэнерго»)"]
[6,"Акционерное общество «Электросеть» (АО «Электросеть»)"]
[7,"Акционерное общество «Энергосетевая Компания ЧТПЗ» (АО «ЭСК ЧТПЗ»)"]
[8,"Муниципальное многоотраслевое предприятие коммунального хозяйства (ММПКХ)"]
[9,"Муниципальное унитарное предприятие «КОММЕТ» (МУП «КОММЕТ»)"]
[10,"Муниципальное унитарное предприятие «Городская управляющая компания» (МУП «ГУК»)"]
[11,"Муниципальное унитарное предприятие «Многоотраслевое производственное объединение энергосетей» города Трехгорного (МУП «МПОЭ» г. Трехгорного)"]
[12,"Муниципальное унитарное предприятие «Электротепловые сети» (МУП «ЭТС»)"]
[13,"Непубличное акционерное общество «Вишневогорский горно-обогатительный комбинат» (АО «Вишневогорский ГОК»)"]
[14,"Открытое акционерное общество «Магнитогорский метизно-калибровочный завод «ММК-Метиз» (ОАО «ММК-Метиз»)"]
[15,"Открытое акционерное общество «Российские железные дороги» (Южно-Уральская дирекция по энергообеспечению – структурное подразделение Трансэнерго – филиала открытого акционерного общества «Российские железные дороги») (ОАО «РЖД» (Южно-Уральская дирекция по энергообеспечению – структурное подразделение Трансэнерго – филиала ОАО «РЖД»)"]
[16,"Общество с ограниченной ответственностью «АТЭК74» (ООО «АТЭК74»)"]
[17,"Общество с ограниченной ответственностью «Златэнерготелеком» (ООО «Златэнерготелеком»)"]
[18,"Общество с ограниченной ответственностью «Интернешенел Билдинг Констракшен» (ООО «ИБК»)"]
[19,"Общество с ограниченной ответственностью «Каслинская ЭнергоСбытовая Компания» (ООО «Каслинская ЭнергоСбытовая Компания»)"]
[20,"Общество с ограниченной ответственностью Завод стройиндустрии «КЕММА» (ООО «КЕММА»)"]
[21,"Общество с ограниченной ответственностью «Магнитогорская Сетевая Компания» (ООО «МСК»)"]
[22,"Общество с ограниченной ответственностью «Металлстрой» (ООО «Металлстрой»)"]
[23,"Общество с ограниченной ответственностью «Механический завод» (ООО «Механический завод»)"]
[24,"Общество с ограниченной ответственностью «Объединенная электросетевая компания - Челябинск» (ООО «ОЭсК - Челябинск»)"]
[25,"Общество с ограниченной ответственностью «ПРОДВИЖЕНИЕ» (ООО «ПРОДВИЖЕНИЕ»)"]
[26,"Общество с ограниченной ответственностью «Региональная сетевая компания» (ООО «РСК»)"]
[27,"Общество с ограниченной ответственностью Сетевая компания «ЭнергоРесурс» (ООО СК «ЭнР»)"]
[28,"Общество с ограниченной ответственностью «ТЕХНОСЕРВИС-ПЭ» (ООО «ТЕХНОСЕРВИС-ПЭ»)"]
[29,"Общество с ограниченной ответственностью «Трансэнерго» (ООО «Трансэнерго»)"]
[30,"Общество с ограниченной ответственностью «Уральская энергетическая сетевая компания» (ООО «УЭСК»)"]
[31,"Общество с ограниченной ответственностью «ЭДС» (ООО «ЭДС»)"]
[32,"Общество с ограниченной ответственностью «ЭК Маяк» (ООО «ЭКМ»)"]
[33,"Общество с ограниченной ответственностью «Электросетевая компания» (ООО «ЭСК»), г. Екатеринбург"]
[34,"Общество с ограниченной ответственностью «Электросетевая компания» (ООО «Электросетевая компания»), г. Сатка"]
[35,"Общество с ограниченной ответственностью «ЭНЕРГЕТИЧЕСКАЯ КОМПАНИЯ АЛЬТАИР» (ООО «ЭНЕРГЕТИЧЕСКАЯ КОМПАНИЯ АЛЬТАИР»)"]
[36,"Общество с ограниченной ответственностью «Энергоснабжающая сетевая компания» (ООО «ЭСК»)"]
[37,"Общество с ограниченной ответственностью «Энерготехсервис» (ООО «ЭТС»)"]
[38,"Общество с ограниченной ответственностью «Эффект ТК» (ООО «Эффект ТК»)"]
[39,"Публичное акционерное общество «Магнитогорский металлургический комбинат» (ПАО «ММК») "]
[40,"Публичное акционерное общество «Челябинский завод профилированного стального настила» (ПАО «ЧЗПСН-ПРОФНАСТИЛ»)"]
[41,"Федеральное государственное унитарное предприятие «Приборостроительный завод» (ФГУП «ПСЗ», ФГУП «Приборостроительный завод»)"]
[42,"Федеральное государственное унитарное предприятие «Производственное объединение «Маяк» (ФГУП «ПО «Маяк»)"]
[43,"Общество с ограниченной ответственностью «ТЕРРА» (ООО «ТЕРРА»)"]
[44,"Общество с ограниченной ответственностью «ДОНКАРБ ГРАФИТ» (ООО «ДОНКАРБ ГРАФИТ»)\n"]
[45,"Общество с ограниченной ответственностью «МиассЭнергоСтрой» (ООО «МиассЭнергоСтрой»)\n"]
[46,"Общество с ограниченной ответственностью Производственная компания «Уралэлектромонтаж» (ООО ПК «УЭМ»)"]
[47,"Общество с ограниченной ответственностью «ЭРГО» (ООО «ЭРГО»)"]

{"sheet":"Калькулятор","index":13,"n_rows":31,"n_cols":2,"rows_kept":31,"cut":false,"hidden":false,"merged":[[1,1,1,2],[30,1,30,2]]}
[]
[null,"Расчет платы за технологическое присоединение к электрическим сетям"]
[]
[]
[null,"Наименование территориальной сетевой организации:"]
[]
[null,"Уровень напряжения энергопринимающих устройств, кВ"]
[null,"Максимальная мощность, кВт"]
[null,"Территория, на которой осуществляется технологическое присоединение к электрическим сетям"]
[null,"Наличие мероприятий по строительству «последней мили» со стороны сетевой организации"]
[null,"Техническое решение для расчета платы с учетом стандартизированных тарифных ставок:"]
[null,"Строительство воздушных линий"]
[null,"Строительство кабельных линий"]
[null,"Строительство трансформаторных подстанций"]
[null,"Строительство пунктов секционирования"]
[null,"Строительство подстанций уровнем напряжения 35кВ и выше (ПС)"]
[null,"Строительство распределительных трансформаторных подстанций "]
[null,"Обеспечение средствами коммерческого учета электрической энергии (мощности)"]
[null,"Техническое решение для расчета платы с учетом ставок за единицу максимальной мощности:"]
[null,"Воздушные линии электропередачи"]
[null,"Кабельные линии электропередачи"]
[null,"Трансформаторные подстанции"]
[null,"Распределительные трансформаторные подстанции "]
[null,"Подстанции уровнем напряжения 35кВ и выше (ПС)"]
[null,"Пункты секционирования"]
[null,"Средства коммерческого учета электрической энергии (мощности)"]
[]
[]
[]
[]
[null,"Внимание! Данные расчеты носят справочный характер и не могут являться окончательными для оплаты стоимости технологического присоединения. \nКалькулятор расчета платы за технологическое присоединение к электрическим сетям предназначен для примерного расчета стоимости размера платы за технологическое присоединение к электрическим сетям территориальных сетевых организаций Челябинской области."]

{"sheet":"ставки за 1кВт","index":14,"n_rows":9,"n_cols":6,"rows_kept":9,"cut":false,"hidden":true,"merged":[[0,0,0,5],[2,3,2,5],[2,2,3,2],[2,0,3,0]]}
[]
[]
["№ п.п",null,"Наименование  тарифной ставки","Размер ставки за единицу максимальной мощности, в отношении заявителей, осуществляющих технологическое присоединение энергопринимающих устройств \nруб./кВт (без учета НДС)"]
[null,null,null,"свыше 150 кВт, \nна территориях городских населенных пунктов ","свыше 150 кВт, \nна территориях, \nне относящихся к территориям городских населенных пунктов","не более 150 кВт включительно"]
[]
[null,null,null,"0,4  кВ    и    ниже"]
[null,null,null,"1   -   20    кВ"]
[null,null,null,"35    кВ"]
[null,null,null,"110    кВ"]

{"sheet":"ВЛ_1 кВт","index":15,"n_rows":73,"n_cols":13,"rows_kept":73,"cut":false,"hidden":true,"merged":[[8,1,8,7],[0,0,0,7],[4,1,4,7],[5,1,5,7],[6,1,6,7],[7,1,7,7],[29,1,29,7],[11,1,11,7],[14,1,14,7],[16,1,16,7],[17,1,17,7],[18,1,18,7],[21,1,21,7],[22,1,22,7],[24,1,24,7],[26,1,26,7],[27,1,27,7],[28,1,28,7],[49,1,49,7],[31,1,31,7],[33,1,33,7],[34,1,34,7],[35,1,35,7],[37,1,37,7],[40,1,40,7],[41,1,41,7],[42,1,42,7],[43,1,43,7],[46,1,46,7],[48,1,48,7],[65,1,65,7],[67,1,67,7],[68,1,68,7],[71,1,71,7],[52,1,52,7],[55,1,55,7],[58,1,58,7],[59,1,59,7],[60,1,60,7],[63,1,63,7]]}
["Ставки за единицу максимальной мощности на покрытие расходов сетевой организации на строительство воздушных линий электропередачи"]
[]
[null,"Наименование стандартизированной тарифной ставки","Размер ставки в отношении заявителей, осуществляющих технологическое присоединение энергопринимающих устройств \nсвыше 150 кВт \n(на территориях городских населенных пунктов), \nруб./кВт","наличие","Размер ставки в отношении заявителей, осуществляющих технологическое присоединение энергопринимающих устройств \nсвыше 150 кВт\n (на территориях, не относящихся к территориям городских населенных пунктов), руб./кВт","наличие","Размер ставки в отношении заявителей, осуществляющих технологическое присоединение энергопринимающих устройств \nне более 150 кВт, руб./кВт","наличие"]
["№ п/п",1,2,3,4,5,6,7]
[2,"С2  - Ставка за единицу максимальной мощности на покрытие расходов сетевой организации на строительство воздушных линий электропередачи"]
["2.1.","Материал опоры - деревянные",null,null,null,null,null,null,null,null,null,{"$f":"IF(Калькулятор!C9='ставки за 1кВт'!D4,D10,0)","v":0}]
["2.1.1.","Тип провода - изолированный"]
["2.1.1.4.","Материал провода - алюминиевый",null,null,null,null,null,null,null,null,null,null,{"$f":"IF(D7=\"да\",C7,0)","v":0}]
["2.1.1.4.1","Сечение провода - до 50 мм2 включительно"]
[null,"0,4  кВ  и    ниже",8067.55,null,10000.709999999999,null,0,null,null,null,1,{"$f":"SUM(IF(D11=\"да\",C11*Калькулятор!C8,0),IF(D10=\"да\",C10*Калькулятор!C8,0),IF(D13=\"да\",C13*Калькулятор!C8,0),IF(D14=\"да\",C14*Калькулятор!C8,0),IF(D16=\"да\",C16*Калькулятор!C8,0),IF(D20=\"да\",C20*Калькулятор!C8,0),IF(D21=\"да\",C21*Калькулятор!C8,0),IF(D24=\"да\",C24*Калькулятор!C8,0),IF(D51=\"да\",C51*Калькулятор!C8,0),IF(D52=\"да\",C52*Калькулятор!C8,0),IF(D54=\"да\",C54*Калькулятор!C8,0),IF(D55=\"да\",C55*Калькулятор!C8,0),IF(D57=\"да\",C57*Калькулятор!C8,0),IF(D58=\"да\",C58*Калькулятор!C8,0),IF(D63=\"да\",C63*Калькулятор!C8,0),IF(D71=\"да\",C71*Калькулятор!C8,0))","v":0}]
[null,"1-20     кВ",3994.63,null,32887.730000000003,null,0,null,null,null,2,{"$f":"SUM(IF(F10=\"да\",E10*Калькулятор!C8,0),IF(F11=\"да\",E11*Калькулятор!C8,0),IF(F13=\"да\",E13*Калькулятор!C8,0),IF(F14=\"да\",E14*Калькулятор!C8,0),IF(F20=\"да\",E20*Калькулятор!C8,0),IF(F21=\"да\",E21*Калькулятор!C8,0),IF(F24=\"да\",E24*Калькулятор!C8,0),IF(F37=\"да\",E37*Калькулятор!C8,0),IF(F51=\"да\",E51*Калькулятор!C8,0),IF(F52=\"да\",E52*Калькулятор!C8,0),IF(F54=\"да\",E54*Калькулятор!C8,0),IF(F55=\"да\",E55*Калькулятор!C8,0),IF(F62=\"да\",E62*Калькулятор!C8,0),IF(F63=\"да\",E63*Калькулятор!C8,0),IF(F65=\"да\",E65*Калькулятор!C8,0),IF(F71=\"да\",E71*Калькулятор!C8,0))","v":0}]
["2.1.1.4.2","Сечение провода - от 50 мм2 до 100 мм2 включительно",null,null,null,null,null,null,null,null,3,{"$f":"SUM(IF(H10=\"да\",G10*Калькулятор!C8,0),IF(H11=\"да\",G11*Калькулятор!C8,0),IF(H13=\"да\",G13*Калькулятор!C8,0),IF(H14=\"да\",G14*Калькулятор!C8,0),IF(H16=\"да\",G16*Калькулятор!C8,0),IF(H20=\"да\",G20*Калькулятор!C8,0),IF(H21=\"да\",G21*Калькулятор!C8,0),IF(H24=\"да\",G24*Калькулятор!C8,0),IF(H26=\"да\",G26*Калькулятор!C8,0),IF(H31=\"да\",G31*Калькулятор!C8,0),IF(H33=\"да\",G33*Калькулятор!C8,0),IF(H37=\"да\",G37*Калькулятор!C8,0),IF(H39=\"да\",G39*Калькулятор!C8,0),IF(H40=\"да\",G40*Калькулятор!C8,0),IF(H45=\"да\",G45*Калькулятор!C8,0),IF(H46=\"да\",G46*Калькулятор!C8,0),IF(H48=\"да\",G48*Калькулятор!C8,0),IF(H51=\"да\",G51*Калькулятор!C8,0),IF(H52=\"да\",G52*Калькулятор!C8,0),IF(H54=\"да\",G54*Калькулятор!C8,0),IF(H55=\"да\",G55*Калькулятор!C8,0),IF(H57=\"да\",G57*Калькулятор!C8,0),IF(H58=\"да\",G58*Калькулятор!C8,0),IF(H62=\"да\",G62*Калькулятор!C8,0),IF(H63=\"да\",G63*Калькулятор!C8,0),IF(H65=\"да\",G65*Калькулятор!C8,0),IF(H67=\"да\",G67*Калькулятор!C8,0),IF(H70=\"да\",G70*Калькулятор!C8,0),IF(H71=\"да\",G71*Калькулятор!C8,0),IF(H73=\"да\",G73*Калькулятор!C8,0))","v":0}]
[null,"0,4  кВ  и    ниже",7899.37,null,12435.43,null,0]
[null,"1-20     кВ",15829.84,null,4868.24,null,0]
["2.1.1.4.3","Сечение провода - от 100 мм2 до 200 мм2 включительно"]
[null,"0,4  кВ  и    ниже",3878.33,null,"-",null,0]
["2.1.2."," Тип провода - неизолированный"]
["2.1.2.3.","Материал провода - сталеалюминиевый"]
["2.1.2.3.1","Сечение провода - до 50 мм2 включительно"]
[null,"0,4  кВ  и    ниже",38759.599999999999,null,13312.29,null,0]
[null,"1-20     кВ",86.03,null,9395.0300000000007,null,0]
["2.1.2.4.","Материал провода - алюминиевый"]
["2.1.2.4.1","Сечение провода - до 50 мм2 включительно"]
[null,"0,4  кВ  и    ниже",674.83,null,4443.47,null,0]
["2.1.2.4.2","Сечение провода - от 50мм2 до 100 мм2 включительно"]
[null,"1-20     кВ","-",null,"-",null,0]
["2.2.","Материал опоры - металлические"]
["2.2.1.","Тип провода – изолированный"]
["2.2.1.4","Материал провода – алюминиевый"]
["2.2.1.4.1","Сечение провода – до   50 мм2 включительно"]
[null,"0,4  кВ  и    ниже","-",null,"-",null,0]
["2.2.1.4.2","Сечение провода - от 50мм2 до 100 мм2 включительно"]
[null,"0,4  кВ  и    ниже","-",null,"-",null,0]
["2.2.2.","Тип провода - неизолированный"]
["2.2.2.3.","Материал провода - сталеалюминиевый"]
["2.2.2.3.2","Сечение провода - от 50  до 100 мм2 включительно"]
[null,"1-20     кВ","-",null,14754.96,null,0]
["2.2.2.3.3","Сечение провода - от 100 до 200 мм2 включительно"]
[null,"1-20     кВ","-",null,"-",null,0]
[null,"110 кВ","-",null,"-",null,0]
["2.3."," Материал опоры - железобетонные"]
["2.3.1","Тип провода - изолированный"]
["2.3.1.3","Материал провода - сталеалюминиевый"]
["2.3.1.3.1","Сечение провода – до   50 мм2 включительно"]
[null,"0,4  кВ  и    ниже","-",null,"-",null,0]
[null,"1-20     кВ","-",null,"-",null,0]
["2.3.1.3.2","Сечение провода – от   50 мм2 до  100    мм2   включительно"]
[null,"1-20     кВ","-",null,"-",null,0]
["2.3.1.4","Материал провода - алюминиевый"]
["2.3.1.4.1","Сечение провода - до 50 мм2 включительно"]
[null,"0,4  кВ  и    ниже",5667.43,null,6983.18,null,0]
[null,"1-20     кВ",2906.1,null,9167.15,null,0]
["2.3.1.4.2"," Сечение провода - от 50 мм2 до 100 мм2 включительно"]
[null,"0,4  кВ  и    ниже",3968.3,null,10310.049999999999,null,0]
[null,"1-20     кВ",3747.98,null,10114.85,null,0]
["2.3.1.4.3","Сечение провода - от 100 до 200 мм2 включительно"]
[null,"0,4  кВ  и    ниже",3942.6,null,"-",null,0]
[null,"1-20     кВ",962.05,null,"-",null,0]
["2.3.2.","Тип провода - неизолированный"]
["2.3.2.3.","Материал провода - сталеалюминиевый"]
["2.3.2.3.1","Сечение провода - до 50 мм2 включительно"]
[null,"0,4  кВ  и    ниже","-",null,2.15,null,0]
[null,"1-20     кВ",23539.97,null,3.93,null,0]
["2.3.2.3.2","Сечение провода - от 50 мм2 до 100 мм2 включительно"]
[null,"1-20     кВ","-",null,1824.4,null,0]
["2.3.2.3.3","Сечение провода - от 100 до 200 мм2 включительно"]
[null,"1-20 кВ","-",null,"-",null,0]
["2.3.2.4.","Материал провода - алюминевый"]
["2.3.2.4.1","Сечение провода - до 50 мм2 включительно"]
[null,"0,4  кВ  и ниже","-",null,"-",null,0]
[null,"1-20 кВ",7537.6,null,28240.15,null,0]
["2.3.2.4.3","Сечение провода - от 100 мм2 до 200м2 включительно"]
[null,"1-20 кВ","-",null,"-",null,0]

{"sheet":"КЛ_1 кВт","index":16,"n_rows":114,"n_cols":15,"rows_kept":114,"cut":false,"hidden":true,"merged":[[104,1,104,7],[105,1,105,7],[107,1,107,7],[109,1,109,7],[112,1,112,7],[101,1,101,7],[79,1,79,7],[81,1,81,7],[83,1,83,7],[85,1,85,7],[86,1,86,7],[88,1,88,7],[90,1,90,7],[91,1,91,7],[92,1,92,7],[95,1,95,7],[98,1,98,7],[77,1,77,7],[62,1,62,7],[63,1,63,7],[65,1,65,7],[66,1,66,7],[67,1,67,7],[69,1,69,7],[70,1,70,7],[72,1,72,7],[74,1,74,7],[75,1,75,7],[76,1,76,7],[61,1,61,7],[34,1,34,7],[35,1,35,7],[38,1,38,7],[41,1,41,7],[44,1,44,7],[47,1,47,7],[48,1,48,7],[51,1,51,7],[54,1,54,7],[57,1,57,7],[60,1,60,7],[33,1,33,7],[6,1,6,7],[7,1,7,7],[8,1,8,7],[11,1,11,7],[14,1,14,7],[17,1,17,7],[20,1,20,7],[21,1,21,7],[24,1,24,7],[27,1,27,7],[30,1,30,7],[5,1,5,7],[0,0,0,7],[1,0,2,0],[1,1,2,1],[1,2,1,7],[4,1,4,7]]}
["Ставки за единицу максимальной мощности на покрытие расходов сетевой организации на строительство кабельных линий электропередачи"]
[null,"Наименование стандартизированной тарифной ставки","Размер ставки за единицу максимальной мощности, в отношении заявителей, осуществляющих технологическое присоединение энергопринимающих устройств \nруб./кВт (без учета НДС)"]
[null,null,"\nсвыше 150 кВт, \nна территориях городских населенных пунктов ","наличие","свыше 150 кВт, \nна территориях, \nне относящихся к территориям городских населенных пунктов","наличие","\nне более 150 кВт","наличие"]
["№ п/п",1,2,3,4,5,6,7]
[3,"С3 - Ставка за единицу максимальной мощности на покрытие расходов сетевой организации на строительство кабельных линий электропередачи"]
["3.1.","Способ прокладки - в траншеях"]
["3.1.1.","Одножильные"]
["3.1.1.1.","Кабели с резиновой и пластмассовой изоляцией"]
["3.1.1.1.1","Сечение провода - до 50 мм2 включительно"]
[null,"0,4 кВ и ниже",3614.7,null,"-",null,0]
[null,"1-20 кВ",1932.23,null,"-",null,0]
["3.1.1.1.2","Сечение провода - от 50 мм2 до 100 мм2 включительно"]
[null,"0,4 кВ и ниже",1356.67,null,"-",null,0]
[null,"1-20 кВ",1119.73,null,5654.65,null,0,null,null,null,null,null,1,{"$f":"SUM(IF(D10=\"да\",C10*Калькулятор!C8,0),IF(D11=\"да\",C11*Калькулятор!C8,0),IF(D13=\"да\",C13*Калькулятор!C8,0),IF(D14=\"да\",C14*Калькулятор!C8,0),IF(D16=\"да\",C16*Калькулятор!C8,0),IF(D17=\"да\",C17*Калькулятор!C8,0),IF(D19=\"да\",C19*Калькулятор!C8,0),IF(D20=\"да\",C20*Калькулятор!C8,0),IF(D29=\"да\",C29*Калькулятор!C8,0),IF(D30=\"да\",C30*Калькулятор!C8,0),IF(D37=\"да\",C37*Калькулятор!C8,0),IF(D38=\"да\",C38*Калькулятор!C8,0),IF(D40=\"да\",C40*Калькулятор!C8,0),IF(D41=\"да\",C41*Калькулятор!C8,0),IF(D43=\"да\",C43*Калькулятор!C8,0),IF(D44=\"да\",C44*Калькулятор!C8,0),IF(D46=\"да\",C46*Калькулятор!C8,0),IF(D47=\"да\",C47*Калькулятор!C8,0),IF(D50=\"да\",C50*Калькулятор!C8,0),IF(D51=\"да\",C51*Калькулятор!C8,0),IF(D54=\"да\",C54*Калькулятор!C8,0),IF(D56=\"да\",C56*Калькулятор!C8,0),IF(D57=\"да\",C57*Калькулятор!C8,0),IF(D60=\"да\",C60*Калькулятор!C8,0),IF(D72=\"да\",C72*Калькулятор!C8,0),IF(D81=\"да\",C81*Калькулятор!C8,0),IF(D83=\"да\",C83*Калькулятор!C8,0),IF(D85=\"да\",C85*Калькулятор!C8,0),IF(D88=\"да\",C88*Калькулятор!C8,0),IF(D90=\"да\",C90*Калькулятор!C8,0),IF(D94=\"да\",C94*Калькулятор!C8,0),IF(D95=\"да\",C95*Калькулятор!C8,0),IF(D97=\"да\",C97*Калькулятор!C8,0),IF(D98=\"да\",C98*Калькулятор!C8,0),IF(D100=\"да\",C100*Калькулятор!C8,0),IF(D101=\"да\",C101*Калькулятор!C8,0),IF(D103=\"да\",C103*Калькулятор!C8,0),IF(D104=\"да\",C104*Калькулятор!C8,0),IF(D107=\"да\",C107*Калькулятор!C8,0),IF(D109=\"да\",C109*Калькулятор!C8,0),IF(D111=\"да\",C111*Калькулятор!C8,0),IF(D112=\"да\",C112*Калькулятор!C8,0),IF(D114=\"да\",C114*Калькулятор!C8,0))","v":0}]
["3.1.1.1.3","Сечение провода - от 100 до 200 мм2 включительно",null,null,null,null,null,null,null,null,null,null,2,{"$f":"SUM(IF(F14=\"да\",E14*Калькулятор!C8,0),IF(F16=\"да\",E16*Калькулятор!C8,0),IF(F17=\"да\",E17*Калькулятор!C8,0),IF(F27=\"да\",E27*Калькулятор!C8,0),IF(F29=\"да\",E29*Калькулятор!C8,0),IF(F37=\"да\",E37*Калькулятор!C8,0),IF(F40=\"да\",E40*Калькулятор!C8,0),IF(F43=\"да\",E43*Калькулятор!C8,0),IF(F50=\"да\",E50*Калькулятор!C8,0),IF(F51=\"да\",E51*Калькулятор!C8,0),IF(F54=\"да\",E54*Калькулятор!C8,0),IF(F56=\"да\",E56*Калькулятор!C8,0),IF(F57=\"да\",E57*Калькулятор!C8,0))","v":0}]
[null,"0,4 кВ и ниже",1386.1,null,694.8,null,0,null,null,null,null,null,3,{"$f":"SUM(IF(H10=\"да\",G10*Калькулятор!C8,0),IF(H11=\"да\",G11*Калькулятор!C8,0),IF(H13=\"да\",G13*Калькулятор!C8,0),IF(H14=\"да\",G14*Калькулятор!C8,0),IF(H16=\"да\",G16*Калькулятор!C8,0),IF(H17=\"да\",G17*Калькулятор!C8,0),IF(H19=\"да\",G19*Калькулятор!C8,0),IF(H20=\"да\",G20*Калькулятор!C8,0),IF(H23=\"да\",G23*Калькулятор!C8,0),IF(H24=\"да\",G24*Калькулятор!C8,0),IF(H26=\"да\",G26*Калькулятор!C8,0),IF(H27=\"да\",G27*Калькулятор!C8,0),IF(H29=\"да\",G29*Калькулятор!C8,0),IF(H30=\"да\",G30*Калькулятор!C8,0),IF(H32=\"да\",G32*Калькулятор!C8,0),IF(H33=\"да\",G33*Калькулятор!C8,0),IF(H37=\"да\",G37*Калькулятор!C8,0),IF(H38=\"да\",G38*Калькулятор!C8,0),IF(H40=\"да\",G40*Калькулятор!C8,0),IF(H41=\"да\",G41*Калькулятор!C8,0),IF(H43=\"да\",G43*Калькулятор!C8,0),IF(H44=\"да\",G44*Калькулятор!C8,0),IF(H46=\"да\",G46*Калькулятор!C8,0),IF(H47=\"да\",G47*Калькулятор!C8,0),IF(H50=\"да\",G50*Калькулятор!C8,0),IF(H51=\"да\",G51*Калькулятор!C8,0),IF(H53=\"да\",G53*Калькулятор!C8,0),IF(H54=\"да\",G54*Калькулятор!C8,0),IF(H56=\"да\",G56*Калькулятор!C8,0),IF(H57=\"да\",G57*Калькулятор!C8,0),IF(H59=\"да\",G59*Калькулятор!C8,0),IF(H60=\"да\",G60*Калькулятор!C8,0),IF(H65=\"да\",G65*Калькулятор!C8,0),IF(H69=\"да\",G69*Калькулятор!C8,0),IF(H72=\"да\",G72*Калькулятор!C8,0),IF(H74=\"да\",G74*Калькулятор!C8,0),IF(H79=\"да\",G79*Калькулятор!C8,0),IF(H81=\"да\",G81*Калькулятор!C8,0),IF(H83=\"да\",G83*Калькулятор!C8,0),IF(H85=\"да\",G85*Калькулятор!C8,0),IF(H87=\"да\",G87*Калькулятор!C8,0),IF(H90=\"да\",G90*Калькулятор!C8,0),IF(H94=\"да\",G94*Калькулятор!C8,0),IF(H95=\"да\",G95*Калькулятор!C8,0),IF(H97=\"да\",G97*Калькулятор!C8,0),IF(H98=\"да\",G98*Калькулятор!C8,0),IF(H100=\"да\",G100*Калькулятор!C8,0),IF(H101=\"да\",G101*Калькулятор!C8,0),IF(H101=\"да\",G101*Калькулятор!C8,0),IF(H103=\"да\",G103*Калькулятор!C8,0),IF(H104=\"да\",G104*Калькулятор!C8,0),IF(H107=\"да\",G107*Калькулятор!C8,0),IF(H109=\"да\",G109*Калькулятор!C8,0),IF(H111=\"да\",G111*Калькулятор!C8,0),IF(H112=\"да\",G112*Калькулятор!C8,0),IF(H114=\"да\",G114*Калькулятор!C8,0))","v":0}]
[null,"1-20 кВ",3897.09,null,1203.56,null,0]
["3.1.1.1.4","Сечение провода - от 200 до 500 мм2 включительно",null,null,null,null,null,null,null,null,null,null,null,"Ошибка"]
[null,"0,4 кВ и ниже",1640.74,null,"-",null,0,null,null,null,null,null,null,"D","Территория подключения не соотвествует заданным параметрам. Если мощность превышает 150 кВт заполните колонку F. Если мощность менее 150 кВт заполните колонку H"]
[null,"1-20 кВ",11453.72,null,"-",null,0,null,null,null,null,null,null,"F","Территория подключения не соотвествует заданным параметрам. Если мощность превышает 150 кВт заполните колонку D. Если мощность менее 150 кВт заполните колонку H"]
["3.1.1.2.","Кабели с бумажной изоляцией",null,null,null,null,null,null,null,null,null,null,null,"H","Вводимое значение не соотвествует заданным параметрам. Если мощность превышает 150 кВт заполните колонку D или F"]
["3.1.1.2.1","Сечение провода - до 50 мм2 включительно"]
[null,"0,4 кВ и ниже","-",null,"-",null,0]
[null,"1-20 кВ","-",null,"-",null,0]
["3.1.1.2.2","Сечение провода - от 50 мм2 до 100 мм2 включительно",null,null,null,null,null,null,null,null,null,null,null,"Сообщение"]
[null,"0,4 кВ и ниже","-",null,"-",null,0,null,null,null,null,null,null,"D","Вводимое значение в отношении заявителей на территории городских населенных пунктов"]
[null,"1-20 кВ","-",null,250589.05,null,0,null,null,null,null,null,null,"F","Вводимое значение в отношении заявителей на территориях, не относящихся к территориям городских населенных пунктов"]
["3.1.1.2.3","Сечение провода - от 100 до 200 мм2 включительно",null,null,null,null,null,null,null,null,null,null,null,"H","Вводимое значение в отношении заявителей, осуществляющих технологическое присоединение энергопринимающих устройств \nне более 150 кВт"]
[null,"0,4 кВ и ниже",10635.54,null,42268.639999999999,null,0]
[null,"1-20 кВ",3253.16,null,"-",null,0]
["3.1.1.2.4","Сечение провода - от 200 до 500 мм2 включительно"]
[null,"0,4 кВ и ниже","-",null,"-",null,0,null,null,null,null,null,null,"D",{"$f":"AND(Калькулятор!$C$9='ставки за 1кВт'!$D$4,Калькулятор!$C$8>150)","v":false}]
[null,"1-20 кВ","-",null,"-",null,0,null,null,null,null,null,null,"F",{"$f":"AND(Калькулятор!$C$9='ставки за 1кВт'!$E$4,Калькулятор!$C$8>150)","v":false}]
["3.1.2.","Многожильные",null,null,null,null,null,null,null,null,null,null,null,"H",{"$f":"AND(Калькулятор!$C$9='ставки за 1кВт'!$F$4,Калькулятор!$C$8<150)","v":false}]
["3.1.2.1.","Кабели с резиновой и пластмассовой изоляцией"]
["3.1.2.1.1","Сечение провода - до 50 мм2 включительно"]
[null,"0,4 кВ и ниже",2916.6,null,1145.95,null,0]
[null,"1-20 кВ",1042.3399999999999,null,"-",null,0]
["3.1.2.1.2","Сечение провода - от 50 мм2 до 100 мм2 включительно"]
[null,"0,4 кВ и ниже",4289.75,null,6344.98,null,0]
[null,"1-20 кВ",3741.45,null,"-",null,0]
["3.1.2.1.3","Сечение провода - от 100 до 200 мм2 включительно"]
[null,"0,4 кВ и ниже",2270.79,null,3612.41,null,0]
[null,"1-20 кВ",2326.61,null,"-",null,0]
["3.1.2.1.4","Сечение провода - от 200 до 500 мм2 включительно"]
[null,"0,4 кВ и ниже",4378.34,null,"-",null,0]
[null,"1-20 кВ",1238.23,null,"-",null,0]
["3.1.2.2.","Кабели с бумажной изоляцией"]
["3.1.2.2.1","Сечение провода - до 50 мм2 включительно"]
[null,"0,4 кВ и ниже",5879.3,null,17730.099999999999,null,0]
[null,"1-20 кВ",5154.47,null,8195.5300000000007,null,0]
["3.1.2.2.2","Сечение провода - от 50 мм2 до 100 мм2 включительно"]
[null,"0,4 кВ и ниже","-",null,"-",null,0]
[null,"1-20 кВ",1565.87,null,5406.83,null,0]
["3.1.2.2.3","Сечение провода - от 100 до 200 мм2 включительно"]
[null,"0,4 кВ и ниже",15911.51,null,2745.69,null,0]
[null,"1-20 кВ",2626.21,null,715.2,null,0]
["3.1.2.2.4","Сечение провода - от 200 до 500 мм2 включительно"]
[null,"0,4 кВ и ниже","-",null,"-",null,0]
[null,"1-20 кВ",7254.05,null,"-",null,0]
["3.5.","Способ прокладки - в галереях и эстакадах"]
["3.5.1.","Одножильные"]
["3.5.1.1.","Кабели с резиновой и пластмассовой изоляцией"]
["3.5.1.1.4","Сечение провода - от 200м2 до 500 мм2 включительно"]
[null,"1-20 кВ","-",null,"-",null,0]
["3.5.2.","Многожильные",null,null,null,null,0]
["3.5.2.1.","Кабели с резиновой и пластмассовой изоляцией",null,null,null,null,0]
["3.5.2.1.1","Сечение провода - до 50 мм2 включительно"]
[null,"0,4 кВ и ниже","-",null,"-",null,0]
["3.5.2.2.","Кабели с бумажной изоляцией"]
["3.5.2.2.1.","Сечение провода - до 50 мм2 включительно"]
[null,"1-20 кВ",3043.17,null,"-",null,0]
["3.5.2.2.3.","Сечение провода - от 100 до 200 мм2 включительно"]
[null,"1-20 кВ","-",null,"-",null,0]
["3.6.","Способ прокладки - горизонтальное наклонное бурение"]
["3.6.1.","Одножильные"]
["3.6.1.1.","Кабели с резиновой и пластмассовой изоляцией"]
["3.6.1.1.1","Сечение провода - до 50 мм2 включительно"]
[null,"1-20 кВ","-",null,"-",null,0]
["3.6.1.1.2","Сечение провода - от 50 мм2 до 100 мм2 включительно"]
[null,"1-20 кВ",844.58,null,"-",null,0]
["3.6.1.1.3","Сечение провода - от 100 до 200 мм2 включительно"]
[null,"1-20 кВ",2005.04,null,"-",null,0]
["3.6.1.1.4","Сечение провода - от 200 до 500 мм2 включительно"]
[null,"1-20 кВ",167.91,null,"-",null,0]
["3.6.1.2","Кабели с бумажной изоляцией"]
["3.6.1.2.2.","Сечение провода - от 50 мм2 до 100 мм2 включительно"]
[null,"1-20 кВ",330.98,null,"-",null,0]
["3.6.1.2.4.","Сечение провода - от 200 мм2 до 500 мм2 включительно"]
[null,"1-20 кВ",425.25,null,"-",null,0]
["3.6.2.","Многожильные"]
["3.6.2.1.","Кабели с резиновой и пластмассовой изоляцией"]
["3.6.2.1.1","Сечение провода - до 50 мм2 включительно"]
[null,"0,4 кВ и ниже",5393.22,null,"-",null,0]
[null,"1-20 кВ",11253.42,null,"-",null,0]
["3.6.2.1.2","Сечение провода - от 50 мм2 до 100 мм2 включительно"]
[null,"0,4 кВ и ниже",889.28,null,"-",null,0]
[null,"1-20 кВ",6651.31,null,"-",null,0]
["3.6.2.1.3","Сечение провода - от 100 до 200 мм2 включительно"]
[null,"0,4 кВ и ниже",1744.25,null,"-",null,0]
[null,"1-20 кВ",4643.72,null,"-",null,0]
["3.6.2.1.4","Сечение провода - от 200 до 500 мм2 включительно"]
[null,"0,4 кВ и ниже",3200.31,null,"-",null,0]
[null,"1-20 кВ",132.46,null,"-",null,0]
["3.6.2.2.","Кабели с бумажной изоляцией"]
["3.6.2.2.1","Сечение провода - до 50 мм2 включительно"]
[null,"1-20 кВ",3377.81,null,"-",null,0]
["3.6.2.2.2","Сечение провода - от 50 мм2 до 100 мм2 включительно"]
[null,"1-20 кВ",5562.29,null,"-",null,0]
["3.6.2.2.3","Сечение провода - от 100 до 200 мм2 включительно"]
[null,"0,4 кВ и ниже",25.76,null,"-",null,0]
[null,"1-20 кВ",2644.3,null,"-",null,0]
["3.6.2.2.4","Сечение провода - от 200 до 500 мм2 включительно"]
[null,"1-20 кВ",3378.07,null,"-",null,0]

{"sheet":"C4_пункты секционирования","index":17,"n_rows":22,"n_cols":15,"rows_kept":22,"cut":false,"hidden":true,"merged":[[13,1,13,7],[15,1,15,7],[0,0,0,7],[6,1,6,7],[7,1,7,7],[8,1,8,7],[10,1,10,7],[12,1,12,7]]}
["Ставки за единицу максимальной мощности на покрытие расходов сетевой организации на строительство пунктов секционирования (реклоузеров, распределительных пунктов, переключательных пунктов)"]
[]
[]
[]
[null,"Наименование стандартизированной тарифной ставки","Размер ставки в отношении заявителей, осуществляющих технологическое присоединение энергопринимающих устройств \nсвыше 150 кВт \n(на территориях городских населенных пунктов), руб./кВт","наличие","Размер ставки в отношении заявителей, осуществляющих технологическое присоединение энергопринимающих устройств \nсвыше 150 кВт\n (на территориях, не относящихся к территориям городских населенных пунктов), руб./кВт","наличие","Размер ставки в отношении заявителей, осуществляющих технологическое присоединение энергопринимающих устройств \nне более 150 кВт, руб./кВт","наличие"]
["№ п/п",1,2,3,4,5,6,7]
[4,"С4 - Ставка за единицу максимальной мощности на покрытие расходов сетевой организации на строительство пунктов секционирования (реклоузеров, распределительных пунктов, переключательных пунктов)"]
["4.1","Реклоузер"]
["4.1.3","Номинальный ток - от 250 А до 500 А включительно"]
[null,"1 - 20 кВ",1339.12,null,2877.36,null,0,null,null,null,null,null,{"$f":"C10*D10","v":0},{"$f":"E10*F10","v":0},{"$f":"IF(H10=\"да\",G10,0)","v":0}]
["4.1.4","Номинальный ток - от 500 А до 1000 А включительно"]
[null,"1 - 20 кВ",999.22,null,4606.66,null,0,null,null,null,null,null,{"$f":"C12*D12","v":0},{"$f":"E12*F12","v":0},{"$f":"IF(H12=\"да\",G12,0)","v":0}]
["4.2","Распределительные пункты (РП)"]
["4.2.2","Номинальный ток - от 100 А до 250 А включительно"]
[null,"1 - 20 кВ","-",null,"-",null,0,null,null,null,null,null,null,null,{"$f":"IF(H15=\"да\",G15,0)","v":0}]
["4.2.4","Номинальный ток - от 500 А до 1000 А включительно"]
[null,"1 - 20 кВ",15426.73,null,"-",null,0,null,null,null,null,null,0,null,{"$f":"IF(H17=\"да\",G17,0)","v":0}]
[null,null,null,null,null,null,null,null,null,null,null,null,{"$f":"SUM(M10:M17)","v":0},{"$f":"SUM(N10:N17)","v":0},{"$f":"SUM(O10:O17)","v":0}]
[]
[null,null,null,null,null,null,null,null,null,1,{"$f":"SUM(IF(D10=\"да\",C10*Калькулятор!C8,0),IF(D12=\"да\",C12*Калькулятор!C8,0),IF(D17=\"да\",C17*Калькулятор!C8,0))","v":0}]
[null,null,null,null,null,null,null,null,null,2,{"$f":"SUM(IF(F10=\"да\",E10*Калькулятор!C8,0),IF(F12=\"да\",E12*Калькулятор!C8,0))","v":0}]
[null,null,null,null,null,null,null,null,null,3,{"$f":"SUM(IF(H10=\"да\",G10*Калькулятор!C8,0),IF(H12=\"да\",G12*Калькулятор!C8,0),IF(H15=\"да\",G15*Калькулятор!C8,0),IF(H17=\"да\",G17*Калькулятор!C8,0))","v":0}]

{"sheet":"С5_ТП_1 кВт","index":18,"n_rows":19,"n_cols":18,"rows_kept":19,"cut":false,"hidden":true,"merged":[[0,0,0,7],[4,1,4,7],[5,1,5,7],[12,1,12,7]]}
["Ставки за единицу максимальной мощности на покрытие расходов сетевой организации на строительство трансформаторных подстанций подстанций (ТП), за исключением распределительных трансформаторных подстанций (РТП), с уровнем напряжения до 35 кВ"]
[]
[null,"Наименование стандартизированной тарифной ставки","Размер ставки в отношении заявителей, осуществляющих технологическое присоединение энергопринимающих устройств \nсвыше 150 кВт \n(на территориях городских населенных пунктов), руб./кВт","наличие","Размер ставки в отношении заявителей, осуществляющих технологическое присоединение энергопринимающих устройств \nсвыше 150 кВт\n (на территориях, не относящихся к территориям городских населенных пунктов), руб./кВт","наличие","Размер ставки в отношении заявителей, осуществляющих технологическое присоединение энергопринимающих устройств \nне более 150 кВт, руб./кВт","наличие"]
["№ п/п",1,2,3,4,5,6,7]
["5","С5 - Ставка за единицу максимальной мощности на покрытие расходов сетевой организации на строительство трансформаторных подстанций (ТП), за исключением распределительных трансформаторных подстанций (РТП), с уровнем напряжения до 35 кВ"]
["5.1.","Однотрансформаторные"]
["5.1.1","Трансформаторная мощность - до 25 кВА включительно",11708.71,null,18798.73,null,0,null,null,null,null,{"$f":"C7*D7","v":0},{"$f":"E7*F7","v":0},{"$f":"G7*H7","v":0},null,null,1,{"$f":"SUM(IF(D7=\"да\",C7*Калькулятор!C8,0),IF(D8=\"да\",C8*Калькулятор!C8,0),IF(D9=\"да\",C9*Калькулятор!C8,0),IF(D10=\"да\",C10*Калькулятор!C8,0),IF(D11=\"да\",C11*Калькулятор!C8,0),IF(D12=\"да\",C12*Калькулятор!C8,0),IF(D14=\"да\",C14*Калькулятор!C8,0),IF(D15=\"да\",C15*Калькулятор!C8,0),IF(D16=\"да\",C16*Калькулятор!C8,0),IF(D17=\"да\",C17*Калькулятор!C8,0))","v":0}]
["5.1.2","Трансформаторная мощность - от 25 кВА до 100 кВА включительно",7164.58,null,11170.56,null,0,null,null,null,null,{"$f":"C8*D8","v":0},{"$f":"E8*F8","v":0},{"$f":"G8*H8","v":0},null,null,2,{"$f":"SUM(IF(F7=\"да\",E7*Калькулятор!C8,0),IF(F8=\"да\",E8*Калькулятор!C8,0),IF(F9=\"да\",E9*Калькулятор!C8,0),IF(F10=\"да\",E10*Калькулятор!C8,0),IF(F11=\"да\",E11*Калькулятор!C8,0),IF(F12=\"да\",E12*Калькулятор!C8,0),IF(F14=\"да\",E14*Калькулятор!C8,0),IF(F15=\"да\",E15*Калькулятор!C8,0),IF(F16=\"да\",E16*Калькулятор!C8,0),IF(F17=\"да\",E17*Калькулятор!C8,0))","v":0}]
["5.1.3","Трансформаторная мощность - от 100 кВА до 250 кВА включительно",4581.62,null,4699.6899999999996,null,0,null,null,null,null,{"$f":"C9*D9","v":0},0,0,null,null,3,{"$f":"SUM(IF(H7=\"да\",G7*Калькулятор!C8,0),IF(H8=\"да\",G8*Калькулятор!C8,0),IF(H9=\"да\",G9*Калькулятор!C8,0),IF(H10=\"да\",G10*Калькулятор!C8,0),IF(H11=\"да\",G11*Калькулятор!C8,0),IF(H12=\"да\",G12*Калькулятор!C8,0),IF(H14=\"да\",G14*Калькулятор!C8,0),IF(H15=\"да\",G15*Калькулятор!C8,0),IF(H16=\"да\",G16*Калькулятор!C8,0),IF(H17=\"да\",G17*Калькулятор!C8,0))","v":0}]
["5.1.4","Трансформаторная мощность - от 250 кВА до 500 кВА включительно",4418.2299999999996,null,11202.74,null,0,null,null,null,null,0,0,0]
["5.1.5","Трансформаторная мощность - от 500 кВА до 900 кВА включительно",6132.35,null,2496.91,null,0,null,null,null,null,0,0,0]
["5.1.6","Трансформаторная мощность - свыше 1000 кВА ",1276.52,null,2076.06,null,0,null,null,null,null,0,0,0]
["5.2.","Двухтрансформаторные и более "]
["5.2.3","Трансформаторная мощность - от 100 кВА до 250 кВА включительно",12632.67,null,7776.59,null,0,null,null,null,null,{"$f":"IF(D14=\"да\",C14,0)","v":0},{"$f":"IF(F14=\"да\",E14,0)","v":0},{"$f":"IF(H14=\"да\",G14,0)","v":0}]
["5.2.4","Трансформаторная мощность - от 250 кВА до 500 кВА включительно",15515.45,null,7495.66,null,0,null,null,null,null,0,0,0]
["5.2.5","Трансформаторная мощность - от 500 кВА до 900 кВА включительно",13564.92,null,4978.96,null,0,null,null,null,null,0,0,0]
["5.2.6","Трансформаторная мощность - свыше 1000 кВА",5772.91,null,3055.94,null,0,null,null,null,null,0,0,0]
[]
[null,null,null,null,null,null,null,null,null,null,null,{"$f":"SUM(L7:L17)","v":0},{"$f":"SUM(M7:M17)","v":0},{"$f":"SUM(N7:N17)","v":0}]

{"sheet":"С6_РТП_1 кВт","index":19,"n_rows":14,"n_cols":13,"rows_kept":14,"cut":false,"hidden":true,"merged":[[0,0,0,7],[4,1,4,7],[5,1,5,7],[7,1,7,7]]}
["Ставки за единицу максимальной мощности на покрытие расходов сетевой организации на строительство распределительных трансформаторных подстанций (РТП) с уровнем напряжения до 35 кВ"]
[]
[null,"Наименование стандартизированной тарифной ставки","Размер ставки в отношении заявителей, осуществляющих технологическое присоединение энергопринимающих устройств \nсвыше 150 кВт \n(на территориях городских населенных пунктов), руб./кВт","наличие","Размер ставки в отношении заявителей, осуществляющих технологическое присоединение энергопринимающих устройств \nсвыше 150 кВт\n (на территориях, не относящихся к территориям городских населенных пунктов), руб./кВт","наличие","Размер ставки в отношении заявителей, осуществляющих технологическое присоединение энергопринимающих устройств \nне более 150 кВт, руб./кВт","наличие"]
["№ п/п",1,2,3,4,5,6,7]
["6","С6 - Ставка за единицу максимальной мощности на покрытие расходов сетевой организации на строительство распределительных трансформаторных подстанции (РТП) с уровнем напряжения до 35 кВ"]
["6.1.","Однотрансформаторные"]
["6.1.2","Трансформаторная мощность - от 25 кВА до 100 кВА включительно",64128.75,null,64128.75,null,0,null,null,null,{"$f":"C7*D7","v":0},{"$f":"E7*F7","v":0},{"$f":"IF(H7=\"да\",G7,0)","v":0}]
["6.2.","Двухтрансформаторные и более"]
["6.2.6","Трансформаторная мощность - свыше 1000 кВА ",4285.8599999999997,null,4285.8599999999997,null,0,null,null,null,{"$f":"C9*D9","v":0},{"$f":"E9*F9","v":0},{"$f":"IF(H9=\"да\",G9,0)","v":0}]
[null,null,null,null,null,null,null,null,null,null,{"$f":"SUM(K7:K9)","v":0},{"$f":"SUM(L7:L9)","v":0},0]
[]
[null,null,null,null,null,null,null,null,null,1,{"$f":"SUM(IF(D7=\"да\",C7*Калькулятор!C8,0),IF(D9=\"да\",C9*Калькулятор!C8,0))","v":0}]
[null,null,null,null,null,null,null,null,null,2,{"$f":"SUM(IF(F7=\"да\",E7*Калькулятор!C8,0),IF(F9=\"да\",E9*Калькулятор!C8,0))","v":0}]
[null,null,null,null,null,null,null,null,null,3,{"$f":"SUM(IF(H7=\"да\",G7*Калькулятор!C8,0),IF(H9=\"да\",G9*Калькулятор!C8,0))","v":0}]

{"sheet":"С7_ИП_1 кВт","index":20,"n_rows":11,"n_cols":12,"rows_kept":11,"cut":false,"hidden":true,"merged":[[0,0,0,7],[6,1,6,7]]}
["Ставки за единицу максимальной мощности на покрытие расходов сетевой организации на строительство подстанций уровнем напряжения 35 кВ и выше (ПС)"]
[]
[]
[]
[null,"Наименование стандартизированной тарифной ставки","Размер ставки в отношении заявителей, осуществляющих технологическое присоединение энергопринимающих устройств \nсвыше 150 кВт \n(на территориях городских населенных пунктов), руб./кВт","наличие","Размер ставки в отношении заявителей, осуществляющих технологическое присоединение энергопринимающих устройств \nсвыше 150 кВт\n (на территориях, не относящихся к территориям городских населенных пунктов), руб./кВт","наличие","Размер ставки в отношении заявителей, осуществляющих технологическое присоединение энергопринимающих устройств \nне более 150 кВт, руб./кВт","наличие"]
["№ п/п",1,2,3,4,5,6,7]
["7","С7 - Ставка за единицу максимальной мощности на покрытие расходов сетевой организации на строительство подстанций уровнем напряжения 35 кВ и выше (ПС)"]
["7.2.","Двухтрансформаторные подстанции\n110/6 (10) кВ",14703.84,null,11991.69,null,0]
[null,null,null,null,null,null,null,null,null,null,1,{"$f":"SUM(IF(D8=\"да\",C8*Калькулятор!C8,0))","v":0}]
[null,null,null,null,null,null,null,null,null,null,2,{"$f":"SUM(IF(F8=\"да\",E8*Калькулятор!C8,0))","v":0}]
[null,null,null,null,null,null,null,null,null,null,3,{"$f":"SUM(IF(H8=\"да\",G8*Калькулятор!C8,0))","v":0}]

{"sheet":"С8_1 кВт","index":21,"n_rows":15,"n_cols":12,"rows_kept":15,"cut":false,"hidden":true,"merged":[[11,1,11,7],[13,1,13,7],[0,0,0,7],[4,1,4,7],[5,1,5,7],[6,1,6,7],[8,1,8,7],[9,1,9,7]]}
["Ставки за единицу максимальной мощности на покрытие расходов сетевой организации на строительство воздушных линий электропередачи"]
[]
[null,"Наименование стандартизированной тарифной ставки","Размер ставки в отношении заявителей, осуществляющих технологическое присоединение энергопринимающих устройств \nсвыше 150 кВт \n(на территориях городских населенных пунктов), \nрублей/кВт","наличие","Размер ставки в отношении заявителей, осуществляющих технологическое присоединение энергопринимающих устройств \nсвыше 150 кВт\n (на территориях, не относящихся к территориям городских населенных пунктов), \nрублей /кВт","наличие","Размер ставки в отношении заявителей, осуществляющих технологическое присоединение энергопринимающих устройств \nне более 150 кВт, рублей/кВт","наличие"]
["№ п/п",1,2,3,4,5,6,7]
[8,"С2  - Ставка за единицу максимальной мощности на покрытие расходов сетевой организации на обеспечение средствами коммерческого учета \nэлектрической энергии (мощности)"]
["8.1.","однофазные"]
["8.1.1.","прямого     включения"]
[null,"0,4  кВ  и  ниже   без   ТТ",2934.57,null,2934.57,null,2934.57,null,null,null,1,{"$f":"SUM(IF(D8=\"да\",C8*Калькулятор!C8,0),IF(D11=\"да\",C11*Калькулятор!C8,0),IF(D13=\"да\",C13*Калькулятор!C8,0),IF(D15=\"да\",C15*Калькулятор!C8,0))","v":0}]
["8.2.","трехфазные"]
["8.2.1.","прямого     включения",null,null,null,null,null,null,null,null,2,{"$f":"SUM(IF(F8=\"да\",E8*Калькулятор!C8,0),IF(F11=\"да\",E11*Калькулятор!C8,0),IF(F13=\"да\",E13*Калькулятор!C8,0),IF(F15=\"да\",E15*Калькулятор!C8,0))","v":0}]
[null,"0,4  кВ  и  ниже   без   ТТ",2049.1,null,2049.1,null,2049.1]
["8.2.2.","полукосвенного     включения",null,null,null,null,null,null,null,null,3,{"$f":"SUM(IF(H8=\"да\",G8*Калькулятор!C8,0),IF(H11=\"да\",G11*Калькулятор!C8,0),IF(H13=\"да\",G13*Калькулятор!C8,0),IF(H15=\"да\",G15*Калькулятор!C8,0))","v":0}]
[null,"0,4  кВ  и    ниже     с    ТТ",327.02,null,327.02,null,327.02]
["8.2.3.","косвенного     включения"]
[null,"1 - 20 кВ",1587.87,null,1587.87,null,1587.87]